Cogmind - Beta 16.1 @@@ ROGUE MODE // 2026.04.29 @ 23:03:00 Player: Peanut Result: Fortifying 0b10! Performance ------------- Evolutions (9) 4500 Regions Visited (35) 7000 Robots Destroyed (631) 3155 Value Destroyed (37725) 37725 Prototype IDs (98) 1960 Alien Tech Used (5) 1000 Bonus (37760) 37760 TOTAL SCORE: 93100 Bonus ------- Triggered High Security 1500 High Alert Combat Kills 11808 Follower Combat Kills 3343 Hunted by Unchained 1000 Destroyed Unchained 2000 Registered with UFD 300 Met Optimus in HQ 500 Met Data Miner 300 MAIN.C Attacked Warlord 500 Built Enhanced Grunts 300 Met R17 at Cetus 500 Found Hidden Lab 3000 Met R17 at Research 2000 Scanned by Researcher 500 Met MAIN.C 5000 Destroyed MAIN.C Shell 5000 Win 3000 Friendly Fire -2791 Cogmind --------- Core Integrity 1086/1600 Matter 29/300 Energy 404/1100 System Corruption 3% Temperature Cool (0) Movement Immobile (Siege) Location By MAIN.C's Side Parts ------- > --- POWER (3) -------- Singularity Reactor > --- PROPULSION (6) --- Biometal Heavy Treads Biometal Heavy Treads Advanced Heavy Siege Treads > --- UTILITY (12) ----- 2N-1CE's Frost Array Experimental Coolant Injector High-capacity Storage Unit Tactical Coordination Suite Experimental Core Analyzer Experimental Core Analyzer Improved Kinecellerator Experimental Weapon Cycler Heavy Regenerative Plating Thermal Barrier Advanced Shield Generator > --- WEAPON (5) ------- Hypervelocity Multirail (fused) Graviton Cannon Graviton Cannon Graviton Cannon Hellfire Missile Launcher > --- INVENTORY (20) --- Zero-point Reactor Vortex Chain Reactor Experimental Biometal Heavy Treads Advanced Energy Well (500) Experimental Energy Well (0) Advanced Matter Compressor (400) Advanced Particle Accelerator Graphene Brace Advanced Focal Shield Long-range Tractor Beam Microwarp Drive Compact HERF Cannon Enhanced Nova Cannon Cooled Nova Cannon Null Cannon Graviton Cannon Peak State ------------ > --- POWER ------------ Singularity Reactor > --- PROPULSION ------- Biometal Heavy Treads Biometal Heavy Treads Advanced Heavy Siege Treads > --- UTILITY ---------- High-capacity Storage Unit Experimental Core Analyzer Experimental Weapon Cycler Heavy Regenerative Plating Graphene Brace Advanced Focal Shield Thermal Barrier Experimental System Purifier Microwarp Drive > --- WEAPON ----------- Enhanced Nova Cannon Cooled Nova Cannon Null Cannon Hypervelocity Multirail Graviton Cannon > --- INVENTORY -------- 2N-1CE's Frost Array Experimental Coolant Injector Advanced Energy Well Experimental Energy Well Advanced Matter Compressor Tactical Coordination Suite Advanced Particle Accelerator Experimental Hardlight Generator Advanced Shield Generator Long-range Tractor Beam Integrated Thermoelectric Network Integrated Reactor Core Membrane Vortex Driver Heavy Hardcell Cannon Graviton Cannon Graviton Cannon Hellfire Missile Launcher [Rating: 272] Favorites ----------- Power Quantum Reactor Engine Heavy Deuterium Engine Power Core Neutrino Core Reactor Quantum Reactor Propulsion Centrium Leg Treads Light Treads Leg Centrium Leg Wheel Armored Wheel Utility High-capacity Storage Unit Device Advanced Transmission Jammer Storage High-capacity Storage Unit Processor Experimental Core Analyzer Hackware Experimental Hacking Suite Protection Heavy Regenerative Plating Artifact Microwarp Drive Weapon Plasma Rifle Energy Gun Plasma Rifle Energy Cannon Advanced Beam Cannon Ballistic Gun Hypervelocity Railgun Ballistic Cannon Graviton Cannon Launcher Guided Micro-nuke Launcher Special Weapon Remote Datajack Impact Weapon Heavy Mace Build | -11 -10 -10 -9 -9 -8 -8 -8 -8 -6 -6 -6 -6 -6 -6 -5 -5 -5 -5 -5 -4 -4 -4 -4 -4 -4 -4 -4 -3 -3 -3 -2 -2 -2 -1 -1 ------- Run | Yrd Mat Min Mat Min Mat Sto Rec Scr Fac Was Fac Low Low Dat Pro Fac Upp Upp War Pro Fac Was Fac Ext Cet Arc Hub Res Arm Lab Res Tes Sec Acc Com Slots Evolved 18 | . . . 2 . 2 . . . 4 . . . . . . 2 . . . . 2 . . . . . . 2 . . 2 . . 2 . Power 1 | . . . . . . . . . 1 . . . . . . . . . . . . . . . . . . . . . . . . . . Propulsion 4 | . . . 1 . . . . . 1 . . . . . . 1 . . . . 1 . . . . . . . . . . . . . . Utility 10 | . . . 1 . 1 . . . 1 . . . . . . 1 . . . . 1 . . . . . . 2 . . 1 . . 2 . Weapon 3 | . . . . . 1 . . . 1 . . . . . . . . . . . . . . . . . . . . . 1 . . . . Parts Attached 426 | 7 6 1 30 4 28 14 4 8 24 13 4 5 7 . 10 26 5 1 8 1 34 . 8 12 10 2 2 30 25 3 27 25 9 16 17 Power 41 | 1 1 . 3 1 4 1 . . 6 1 . . . . . 2 2 . 1 . . . . . 2 . . 1 5 . 3 3 4 . . Engine 11 | 1 1 . 2 1 1 . . . 4 . . . . . . . 1 . . . . . . . . . . . . . . . . . . Core 7 | . . . 1 . 3 . . . 1 . . . . . . 1 1 . . . . . . . . . . . . . . . . . . Reactor 23 | . . . . . . 1 . . 1 1 . . . . . 1 . . 1 . . . . . 2 . . 1 5 . 3 3 4 . . Propulsion 75 | 2 . . 9 3 9 5 1 2 3 3 . . 2 . 3 2 . . 1 . 3 . 1 1 . . . 2 6 . 4 6 1 4 2 Treads 35 | 2 . . 8 3 3 4 1 . 2 3 . . 2 . . . . . . . . . . . . . . 1 . . . 1 . 3 2 Leg 34 | . . . . . 5 . . . . . . . . . 3 2 . . 1 . 3 . 1 1 . . . 1 6 . 4 5 1 1 . Wheel 6 | . . . 1 . 1 1 . 2 1 . . . . . . . . . . . . . . . . . . . . . . . . . . Hover . | . . . . . . . . . . . . . . . . . . . . . . . . . . . . . . . . . . . . Flight . | . . . . . . . . . . . . . . . . . . . . . . . . . . . . . . . . . . . . Utility 166 | 2 2 . 8 . 7 2 1 3 7 4 3 3 2 . 3 15 2 1 1 1 20 . 3 5 4 2 2 17 5 2 15 6 2 7 9 Device 97 | 1 . . 2 . 2 . . 1 5 2 1 2 2 . 2 12 2 1 1 . 14 . 1 2 . 2 1 9 2 . 9 6 . 7 8 Storage 12 | 1 1 . 1 . 1 . . . 1 1 . . . . . . . . . . . . . . 1 . . 3 . . 1 . 1 . . Processor 17 | . . . . . . 1 . 1 . . . . . . . 1 . . . . 2 . 1 . . . . 2 3 . 5 . . . 1 Hackware 6 | . . . . . . . . . . . 1 . . . . 2 . . . . 1 . . . . . 1 . . 1 . . . . . Protection 33 | . 1 . 5 . 4 1 1 1 1 1 1 1 . . 1 . . . . 1 3 . 1 3 3 . . 3 . 1 . . . . . Artifact 1 | . . . . . . . . . . . . . . . . . . . . . . . . . . . . . . . . . 1 . . Weapon 144 | 2 3 1 10 . 8 6 2 3 8 5 1 2 3 . 4 7 1 . 5 . 11 . 4 6 4 . . 10 9 1 5 10 2 5 6 Energy Gun 60 | 1 1 . 5 . 2 4 2 2 . 5 1 1 2 . . 5 . . 4 . 7 . 2 6 . . . 3 . . . 6 . 1 . Energy Cannon 21 | . 2 . 2 . 1 . . . 2 . . . 1 . . 1 . . 1 . 1 . 1 . . . . 1 2 1 . 2 . 2 1 Ballistic Gun 33 | 1 . 1 1 . 3 1 . 1 2 . . . . . 4 . . . . . . . . . 4 . . 4 6 . 4 1 . . . Ballistic Cannon 8 | . . . . . . . . . . . . . . . . . 1 . . . . . . . . . . . . . . . . 2 5 Launcher 19 | . . . 2 . 1 1 . . 4 . . 1 . . . 1 . . . . 1 . 1 . . . . 2 1 . 1 1 2 . . Special Weapon 2 | . . . . . . . . . . . . . . . . . . . . . 2 . . . . . . . . . . . . . . Impact Weapon 1 | . . . . . 1 . . . . . . . . . . . . . . . . . . . . . . . . . . . . . . Slashing Weapon . | . . . . . . . . . . . . . . . . . . . . . . . . . . . . . . . . . . . . Piercing Weapon . | . . . . . . . . . . . . . . . . . . . . . . . . . . . . . . . . . . . . Special Melee Weapon . | . . . . . . . . . . . . . . . . . . . . . . . . . . . . . . . . . . . . Unidentified Prototypes 75 | . . . 3 . 2 3 . 1 2 . 1 . . . . . . . 4 . 4 . 2 . 3 . . 7 8 5 7 13 5 2 3 Corrupted Parts 4 | . . . . . . . . . . . . . . . . . . . . . . . . . 4 . . . . . . . . . . System Corruption 27 | . . . . . . . . . . . . . . . . . . . . . . . . . 27 . . . . . . . . . . Parts Lost 29 | . . . . . . . . . 4 . 1 . 5 . 3 1 . . . . 2 1 . . . . . 2 . . 2 6 2 . . Power 3 | . . . . . . . . . . . . . . . . . . . . . . . . . . . . . . . . 2 1 . . Propulsion 3 | . . . . . . . . . . . . . . . 1 . . . . . . . . . . . . 1 . . . . 1 . . Utility 14 | . . . . . . . . . 2 . 1 . 3 . . . . . . . 1 1 . . . . . . . . 2 4 . . . Weapon 9 | . . . . . . . . . 2 . . . 2 . 2 1 . . . . 1 . . . . . . 1 . . . . . . . Highest Loss Streak 3 | . . . . . . . . . 3 . 1 . 3 . 3 1 . . . . 1 1 . . . . . 2 . . 2 2 1 . . To Critical Strikes 4 | . . . . . . . . . 2 . . . . . . . . . . . . . . . . . . 2 . . . . . . . Average Backups 16 | 4 11 15 14 15 17 19 19 18 16 17 18 18 14 12 13 17 18 18 16 15 14 15 14 15 15 15 15 14 15 14 14 15 18 17 16 Power . | . . . . . . 1 . . . . . . . . . . . . . . . . . . . . . . . . . . . . . Propulsion 2 | 1 3 5 4 5 4 3 6 4 3 2 3 3 1 1 1 . 1 1 1 1 . . . 1 1 1 1 . . . . 1 1 1 1 Utility 7 | . 2 4 3 3 4 5 4 6 7 10 9 9 6 4 6 7 9 10 9 8 8 9 8 9 9 9 9 7 8 8 9 8 9 8 8 Weapon 5 | 1 4 6 7 7 6 8 8 5 3 3 5 5 5 6 4 7 5 5 4 6 6 6 5 5 5 5 5 5 5 6 5 4 6 4 4 Tool/Special . | . . . . . . . . . . . . . . . . . . . . . . . . . . . . . . . . . . . . Unused Backups 82 | 1 5 2 9 . 7 6 . 2 5 3 1 . . . . 5 . 1 6 . . . 4 . . . 1 1 4 2 5 2 . 1 9 Power 5 | . 1 . . . . 1 . . . . . . . . . 1 . . . . . . . . . . . . . . . . . . 2 Propulsion 16 | . 3 . 1 . 3 1 . . . 1 . . . . . . . . . . . . 1 . . . . 1 2 . . . . 1 2 Utility 32 | . 1 2 1 . 1 1 . 2 2 2 1 . . . . 1 . 1 4 . . . 2 . . . 1 . 1 1 5 2 . . 1 Weapon 22 | 1 . . 7 . 3 2 . . 3 . . . . . . 3 . . . . . . . . . . . . 1 1 . . . . 1 Tool/Special 7 | . . . . . . 1 . . . . . . . . . . . . 2 . . . 1 . . . . . . . . . . . 3 Average Slot Usage (%) 86 | . 99 100 99 100 99 99 98 99 94 86 85 85 90 71 96 81 82 82 77 76 77 74 73 74 79 84 84 84 85 81 82 90 71 76 75 Engine 3 | . 14 14 9 11 6 3 . . 6 9 13 13 13 13 13 10 . . . . . . . . . . . . . . . . . . . Reactor 4 | . . . . . . 5 9 9 4 2 . . . . . . 5 5 5 5 5 5 5 5 7 10 10 9 8 9 11 11 9 3 3 Treads 8 | . 28 28 28 33 12 14 18 6 12 12 12 13 18 20 15 . . . . . . . . . . . . . . . . . . 7 10 Leg 8 | . . . . . 9 . . . . . . . . . 7 11 11 11 11 11 14 15 15 15 15 15 15 13 14 13 13 24 24 6 . Wheel 2 | . . . 4 . 5 12 9 20 8 1 . . . . . . . . . . . . . . . . . . . . . . . . . Device 18 | . 7 12 11 11 17 10 9 11 20 19 12 17 13 20 14 20 23 23 25 29 21 26 22 22 20 22 21 26 19 17 15 23 14 29 28 Storage 6 | . 14 14 11 11 9 9 9 9 6 6 6 6 6 6 6 5 5 5 5 5 5 5 5 5 5 5 5 4 4 4 4 4 4 3 3 Processor 2 | . . . . . . 7 9 6 . . . . . . . 1 . . . . . . . . . . . 3 13 13 11 5 4 3 3 Hackware 1 | . . . . . . . . . . . 2 6 6 6 6 5 5 5 3 . 4 . . . . . 3 2 . . 1 . . . . Protection 5 | . 6 1 10 11 9 9 9 9 5 6 10 2 5 . 4 . . . . . 4 3 3 4 9 8 5 4 4 4 4 4 4 3 3 Energy Gun 12 | . 22 . 15 . . 23 25 24 12 20 25 25 25 5 8 9 22 21 22 22 19 18 18 20 8 . . . . . . 4 3 1 . Energy Cannon 3 | . 4 . 5 22 20 2 . . 6 3 . . . . . . . 1 . . . . . . . . . . . 4 1 7 2 8 12 Ballistic Gun 5 | . . 27 . . 5 . . . 6 1 . . . . 17 12 . . . . . . . . 11 21 21 18 18 13 16 3 . 3 3 Peak Build Rating 272 | 7 8 9 19 19 35 41 41 49 70 82 89 92 93 89 97 116 115 119 134 135 153 140 143 140 153 150 150 165 173 179 219 234 245 261 272 Average Rating 118 | 5 7 8 15 18 28 36 39 41 63 79 83 90 90 74 89 112 112 115 124 133 146 134 138 136 144 148 148 159 168 173 203 218 230 243 253 On Entrance 106 | . 7 8 9 18 18 27 40 29 44 66 82 86 91 89 89 97 114 115 115 132 132 141 122 136 133 150 150 150 164 173 179 216 222 245 247 Avg Prop Armor Cover (%) 11 | . . . 16 . 11 10 15 8 13 7 . . 12 12 6 . . . . . . . . . . . . . . . 3 . . . . Naked Turns . | . . . . . . . . . . . . . . . . . . . . . . . . . . . . . . . . . . . . Heaviest Build 194 | 13 32 32 43 44 76 74 74 91 110 138 144 137 139 87 94 99 106 105 112 114 128 124 139 137 128 128 130 140 140 152 179 182 175 193 194 Greatest Support 230 | 40 40 40 60 63 60 24 12 36 28 140 140 140 140 130 130 113 113 113 115 115 140 138 138 138 138 138 138 138 180 180 180 180 180 230 230 Greatest Overweight (x) 9 | . . . 2 . 6 6 6 6 4 9 1 . 1 1 1 . . . . . 2 . 1 . . . . 1 1 . 1 1 1 1 1 Average Overweight (x) . | . . . . . 2 4 5 2 3 . . . . . . . . . . . . . . . . . . . . . . . . . . Largest Inventory Capacity 25 | 8 15 15 15 15 20 20 20 20 20 25 25 25 25 20 20 20 20 20 20 20 20 20 20 20 20 20 20 25 20 20 20 20 20 20 20 Average Capacity 19 | 7 13 15 15 15 17 20 20 20 20 22 25 25 22 20 20 20 20 20 20 20 20 20 20 20 20 20 20 20 20 20 20 20 20 20 20 Most Carried 25 | 6 15 15 15 15 20 20 20 20 20 25 25 25 25 19 20 20 20 20 20 20 20 20 20 20 20 20 20 20 20 20 20 20 20 20 20 Average Carried 19 | 4 11 14 14 15 17 19 19 19 19 21 24 24 20 18 18 19 19 20 19 20 19 20 19 19 20 20 19 19 19 19 19 19 19 19 19 Final Capacity 25 | 8 15 15 15 15 20 20 20 20 20 25 25 25 20 20 20 20 20 20 20 20 20 20 20 20 20 20 20 20 20 20 20 20 20 20 20 Final Carried 25 | 5 15 15 15 15 20 20 20 20 20 25 25 25 15 15 20 20 20 20 20 20 20 20 20 20 20 20 20 20 20 20 20 20 20 20 20 Class Distribution -------------------- 27% | Tank 14% | Scavenger-Tank 10% | Gunner 8% | Mutant 6% | Pyromaniac-Skirmisher 6% | Commander-Gunner 4% | Infiltrator-Skirmisher 4% | Commander-Tank 3% | Scavenger-Gunner 3% | Infiltrator-Tank Dominant Class ---------------- Mutant | -10/Materials Mutant | -10/Mines Scavenger-Mutant | -9/Materials Mutant | -9/Mines Tank | -8/Materials Gunner | -8/Storage Gunner | -8/Recycling Commander-Gunner | -8/Scraptown Tank | -6/Factory Scavenger-Tank | -6/Waste Scavenger-Tank | -6/Factory Scavenger-Tank | -6/Lower Caves Scavenger-Tank | -6/Lower Caves Mutant | -6/Data Miner Scavenger-Tank | -5/Proximity Caves Scavenger-Skirmisher | -5/Factory Pyromaniac-Skirmisher | -5/Upper Caves Pyromaniac-Skirmisher | -5/Upper Caves Infiltrator-Skirmisher | -5/Warlord Infiltrator-Skirmisher | -4/Proximity Caves Tank | -4/Factory Tank | -4/Waste Tank | -4/Factory Commander-Tank | -4/Extension Commander-Tank | -4/Cetus Scavenger-Tank | -4/Archives Commander-Tank | -4/Hub_04(d) Scavenger-Tank | -3/Research Gunner | -3/Armory Commander-Gunner | -3/Lab Infiltrator-Skirmisher | -2/Research Gunner | -2/Testing Tank | -2/Section 7 Infiltrator-Tank | -1/Access Tank | -1/Command Resources | -11 -10 -10 -9 -9 -8 -8 -8 -8 -6 -6 -6 -6 -6 -6 -5 -5 -5 -5 -5 -4 -4 -4 -4 -4 -4 -4 -4 -3 -3 -3 -2 -2 -2 -1 -1 ----------- Run | Yrd Mat Min Mat Min Mat Sto Rec Scr Fac Was Fac Low Low Dat Pro Fac Upp Upp War Pro Fac Was Fac Ext Cet Arc Hub Res Arm Lab Res Tes Sec Acc Com Matter Collected 18729 | 354 90 116 702 132 780 310 70 200 629 170 224 272 534 . 554 1105 270 135 170 330 1137 . 576 368 320 319 87 1426 944 . 2859 990 325 1040 1191 Remotely 3236 | . . . . . . . . . . . . . . . . . . . . . . . . . . . . 152 206 . 1433 349 . 458 638 Salvage Created 35904 | 188 305 94 930 25 1375 1300 94 194 1097 323 720 603 940 . 472 1586 510 26 . 318 1898 . 1640 631 128 310 118 1809 1123 . 2809 3117 2502 3186 5533 Parts 1474 | 16 24 7 71 5 65 59 7 10 55 9 19 15 22 . 21 69 12 4 . 8 58 . 41 15 7 26 8 69 79 . 161 111 85 136 180 Haulers Intercepted 27 | . 2 . 3 . 4 6 . . 1 . . . . . . 1 . . . . 1 . 3 . . . . 3 . . . 1 2 . . Recyclers Shooed 16 | . . . 1 . . 1 . . . . . . . . . 3 . . . . 2 . . . . . . 3 . . 2 . 1 . 3 Parts Field Recycled . | . . . . . . . . . . . . . . . . . . . . . . . . . . . . . . . . . . . . Retrieved Matter . | . . . . . . . . . . . . . . . . . . . . . . . . . . . . . . . . . . . . Parts Self-Destructed 76 | . . . . . . . . . . . . 3 16 . 36 . 9 4 . 8 . . . . . . . . . . . . . . . Prevented 22 | . . . . . . . . . . . . 11 11 . . . . . . . . . . . . . . . . . . . . . . Parts Restored 3 | . . . . . . . . . . . . . . . 3 . . . . . . . . . . . . . . . . . . . . Broken 3 | . . . . . . . . . . . . . . . 3 . . . . . . . . . . . . . . . . . . . . Kills | -11 -10 -10 -9 -9 -8 -8 -8 -8 -6 -6 -6 -6 -6 -6 -5 -5 -5 -5 -5 -4 -4 -4 -4 -4 -4 -4 -4 -3 -3 -3 -2 -2 -2 -1 -1 ------- Run | Yrd Mat Min Mat Min Mat Sto Rec Scr Fac Was Fac Low Low Dat Pro Fac Upp Upp War Pro Fac Was Fac Ext Cet Arc Hub Res Arm Lab Res Tes Sec Acc Com Combat Hostiles Destroyed 506 | . 10 4 24 3 24 18 2 4 25 1 9 9 19 . 11 20 3 1 . 10 32 . 17 7 . . 1 16 14 . 33 36 30 47 76 Melee 1 | . . . . . . . . . . . . . . . . . . . . . . . . . . . . . . . . . . 1 . Guns 296 | . 6 4 16 . 2 14 1 4 8 1 5 6 12 . 6 17 . 1 . 8 25 . 9 6 . . 1 16 14 . 15 22 2 32 43 Cannons 66 | . . . 3 3 17 1 . . 4 . . . . . . . . . . . . . . . . . . . . . 3 9 2 4 20 AOE 95 | . 4 . 5 . 3 1 1 . 12 . 2 3 2 . 5 2 . . . . 2 . 4 . . . . . . . 11 4 19 9 6 Classes Destroyed 26 | 2 4 . 4 1 2 . 1 2 . . 1 1 1 . 1 . . . . . . . . . . . . . . . 2 2 2 . . Worker 21 | . . . 4 . . 1 . . 1 . . . . . . 4 . . . . 2 . . . . . . 1 . . 1 3 2 . 2 Builder 11 | . . . . . . . . . . . 1 . . . . 5 . . . . . . . . . . . . . . 2 . 2 1 . Tunneler 8 | 6 . . . . . . . . 1 . . . . . . . . . . . . . . . . . . . . . . . . 1 . Hauler 27 | . 2 . 3 . 4 6 . . 1 . . . . . . 1 . . . . 1 . 3 . . . . 3 . . . 1 2 . . Recycler 19 | 1 . . 2 . . . . . . . 1 . . . . 2 . . . . 3 . . . . . . 2 . . 4 1 . 1 2 Mechanic 2 | . . . . . . . . . . . . . . . . . . . . . . . . . . . . . . . . . 1 . 1 Operator 20 | . 1 . . . . 1 . . 1 . . . . . . . . . . . 3 . . . . 9 . . 1 . . 1 3 . . Drone 3 | . . . . . . . . . . . . . . . 1 . . . . 2 . . . . . . . . . . . . . . . Watcher 11 | . . . 2 . 1 . . . . . . . . . . 1 . . . . . . 2 . . . . . 1 . 1 1 1 1 . Swarmer 95 | . 9 3 10 2 3 3 . . 4 1 . . 5 . . 4 . 1 . 4 10 . 1 . . . . 1 . . 4 . 9 5 16 Cutter 1 | . . . . . . . . . . . . . . . . . . . . . . . . . . . . . . . 1 . . . . Saboteur 3 | . . . . . . . . . . . . . 1 . . . . . . . . . . . . . . . . . . . . 1 1 Grunt 158 | . 1 1 4 . 10 8 . . 10 . 4 5 8 . 8 11 1 . . 4 6 . 6 1 . . . 7 3 . 2 20 6 13 19 Brawler 17 | . . . 1 . . 1 . . . . . . 1 . . 1 1 . . . . . 1 . . . . . . . . . 2 4 5 Duelist 14 | . . . . . 2 . . . . . . . 2 . . . . . . . . . . . . . . . . . . 4 . 2 4 Protector 5 | . . . . . . . . . . . . . . . . . . . . . . . . . . . . . . . . 1 . 3 1 Researcher 2 | . . . . . . . . . . . . . . . . . . . . . . . . . . . . . . . . 1 1 . . Sentry 61 | . . . 9 . 8 6 . . 2 . 2 . 1 . . 1 . . . . 3 . 2 5 . . . 4 2 . 7 . 5 3 1 Demolisher 1 | . . . . 1 . . . . . . . . . . . . . . . . . . . . . . . . . . . . . . . Hunter 41 | . . . . . 1 . . . 4 . 3 . 1 . . . . . . . 2 . 4 1 . . . 4 2 . 5 4 . 10 . Programmer 68 | . . . . . . . 2 . 5 . . . . . 2 3 . . . . 11 . 3 . . . 1 . 7 . 13 6 5 4 6 Q-Series 3 | . . . . . . . . . . . . . . . . . . . . . . . . . . . . . . . . . 1 2 . Behemoth 2 | . . . . . . . . . . . . . . . . . . . . . . . . . . . . . . . 1 . . . 1 S7 Guard 2 | . . . . . . . . . . . . . . . . . . . . . . . . . . . . . . . . . 2 . . Enhanced Q-Series 22 | . . . . . . . . . . . . . . . . . . . . . . . . . . . . . . . . . . . 22 Federalist 2 | . . . . . . . . 2 . . . . . . . . . . . . . . . . . . . . . . . . . . . Scrapper 2 | . . . . . . . . 2 . . . . . . . . . . . . . . . . . . . . . . . . . . . Thug 3 | . . . . . . . . . . . . 1 . . . . 1 . . . . . . . . . 1 . . . . . . . . Butcher 2 | . . . . . . . . . . . . 2 . . . . . . . . . . . . . . . . . . . . . . . Guerrilla 1 | . . . . . . . . . . . . . . . . . . . . . . . . . 1 . . . . . . . . . . Mutant 1 | . . . . . . . . . . . . 1 . . . . . . . . . . . . . . . . . . . . . . . Best Kill Streak 24 | 2 6 3 7 2 8 4 2 2 10 1 4 2 5 . 5 9 1 1 . 3 10 . 8 2 . 5 1 6 7 . 6 8 9 13 24 Combat Bots Only 23 | . 6 3 3 2 5 4 2 2 8 1 4 2 5 . 5 5 1 1 . 3 8 . 6 2 . . 1 6 7 . 6 8 7 12 23 Max Kills in Single Turn 7 | 1 3 1 3 1 3 3 1 1 7 1 2 1 2 . 1 2 1 1 . 1 2 . 3 1 1 1 1 2 2 . 3 4 4 4 3 Gunslinging 1 | . 1 . 1 . . 1 . . . . . . 1 . . . . . . . 1 . . . . . . . 1 . . . . . . Exploded 6 | . 3 . 1 . 3 1 1 . 6 . 2 1 1 . 1 1 . . . . 1 . 2 . . . . . . . 2 3 4 4 2 Melee 1 | . . . . . . . . . . . . . . . . . . . . . . . . . . . . . . . . . . 1 . Uniques/NPCs Destroyed 4 | . . . . . . . . . . . . . . . . . . . . . . . . . 1 . . . . . 1 1 . . 1 A7 (-4/Cetus) DW-4LL (-2/Research) 6S-H0T (-2/Testing) MAIN.C Shell (-1/Command) Combat | -11 -10 -10 -9 -9 -8 -8 -8 -8 -6 -6 -6 -6 -6 -6 -5 -5 -5 -5 -5 -4 -4 -4 -4 -4 -4 -4 -4 -3 -3 -3 -2 -2 -2 -1 -1 -------- Run | Yrd Mat Min Mat Min Mat Sto Rec Scr Fac Was Fac Low Low Dat Pro Fac Upp Upp War Pro Fac Was Fac Ext Cet Arc Hub Res Arm Lab Res Tes Sec Acc Com Hostile Shots Fired 2753 | . 27 32 75 11 69 38 20 13 194 2 120 18 106 . 35 58 9 3 3 16 156 2 109 86 4 . 2 95 62 . 406 367 188 159 268 Missed 771 | . 8 8 17 3 19 16 3 3 58 . 36 4 42 . 8 21 3 3 1 5 52 . 34 32 3 . 1 34 18 . 76 98 69 38 58 Deflected 29 | . . . . . . . . . . . . . . . . . . . . . . . . . . . . . 3 . 26 . . . . Hits 1982 | . 19 24 58 8 50 22 17 10 136 2 84 14 64 . 27 37 6 . 2 11 104 2 75 54 1 . 1 61 44 . 330 269 119 121 210 Melee 24 | . . . . . 1 . . . . . . . 8 . . . . . . . . 2 . . . . . . . . . 9 3 1 . Projectile 1958 | . 19 24 58 8 49 22 17 10 136 2 84 14 56 . 27 37 6 . 2 11 104 . 75 54 1 . 1 61 44 . 330 260 116 120 210 AOE 10 | . . . . 5 . . . . . . . . . . . 1 . . . . . . . . . . . . . . . 2 . . 2 Critical Strikes 96 | . . . 2 . 2 1 1 1 5 . 2 1 4 . . 1 . . . . 3 . 5 3 . . 1 5 5 . 9 29 7 1 8 Actively Blocked 39 | . . . . . . . . . . . . . . . . . . . . . . . . . . . . . . . . 29 1 1 8 Part Disruptions 7 | . . . . . . . . . . . . . . . . . . . . . . . . . . . . . 1 . . . . 1 5 Damage Taken 25509 | . 152 225 679 247 716 316 302 64 1234 27 934 253 1280 . 532 712 59 . 46 157 1731 36 885 716 92 . 34 682 401 . 2778 2975 2869 1099 3276 Core 2661 | . 14 6 66 . 96 37 43 10 166 14 67 58 82 . 18 69 . . . . 121 . 51 84 . . . 24 6 . 102 98 915 6 508 Absorbed by Shields 11184 | . . . . . . . . 72 491 . . . . . . 146 59 . 14 47 526 38 507 494 15 . 11 437 415 . 2096 2018 1000 963 1835 Reduced by Siege Mode 454 | . . . . . . . . . . . . . 17 . 5 . . . . . . . . . . . . . . . . . . 92 340 Redirected to Shielding 55 | . . . . . . . . . . . 55 . . . . . . . . . . . . . . . . . . . . . . . . Ignored by Resistances 4086 | . . . . . . . . 5 256 8 157 . . . . . . . . . 17 . . . . . . . . . . 609 705 792 1537 Regen/Repaired (Parts) 5880 | . . . . . . . . . . . 405 . . . . . . . 25 . 1297 . . . . . . . . . 367 779 594 1834 579 Core Remaining (%) 75 | 100 . 92 . 83 . . . 66 . . . . . . 52 . . . . 93 . . . . . . 77 . . 97 . . 23 . 67 Volleys Fired 1448 | 28 19 11 51 8 53 33 7 7 61 8 27 24 47 . 17 46 11 2 5 16 128 . 41 31 6 16 1 44 37 30 118 125 89 110 191 Largest 5 | 1 2 2 2 2 3 3 3 3 4 4 4 4 4 . 4 4 4 4 1 4 4 . 4 4 4 4 4 4 4 1 5 5 4 4 5 Hottest 450 | 20 80 40 136 136 204 204 165 165 255 300 310 310 315 . 315 300 300 300 100 375 398 . 343 333 140 140 140 140 160 120 200 406 356 300 450 Shots Fired 3278 | 28 38 22 95 15 150 99 21 21 147 14 87 75 115 . 43 169 38 6 5 58 302 . 123 121 23 58 7 151 121 30 314 164 95 129 394 Gun 2416 | 28 38 22 79 . 18 93 21 21 102 9 81 68 96 . 37 166 37 5 5 56 281 . 116 118 23 58 7 147 114 . 254 76 57 63 120 Cannon 774 | . . . 10 15 129 6 . . 36 5 1 . 4 . . 2 1 1 . 2 16 . 1 3 . . . 4 7 30 49 85 37 60 270 Launcher 86 | . . . 6 . 3 . . . 9 . 5 7 15 . 6 1 . . . . 3 . 6 . . . . . . . 11 3 1 6 4 Special 2 | . . . . . . . . . . . . . . . . . . . . . 2 . . . . . . . . . . . . . . Kinetic 1066 | 28 . 22 . . 18 . . . 9 . . . . . 32 84 . . . . . . . . 23 58 7 147 114 . 252 56 12 65 139 Thermal 1925 | . . . 89 15 129 6 6 21 129 14 82 68 100 . 5 84 38 6 5 58 295 . 104 120 . . . . 5 30 49 103 82 58 224 Explosive 41 | . . . 5 . 1 . . . 2 . . . 2 . 6 . . . . . . . . . . . . . . . 11 3 1 6 4 Electromagnetic 194 | . 38 . 1 . 2 93 15 . 7 . 5 7 13 . . 1 . . . . 3 . 6 . . . . 1 . . . 2 . . . Impact 2 | . . . . . . . . . . . . . . . . . . . . . . . . . . . . . . . 2 . . . . Entropic 48 | . . . . . . . . . . . . . . . . . . . . . 2 . 13 1 . . . 3 2 . . . . . 27 Robot Hit Streak 33 | 5 5 4 22 4 12 8 14 6 11 7 14 9 24 . 31 24 20 1 6 26 33 . 12 9 5 10 6 12 19 . 31 9 21 25 30 Robot Miss Streak 8 | 2 4 4 8 2 3 5 1 2 3 3 2 3 5 . 1 3 1 2 2 4 4 . 4 4 5 2 2 6 4 . 4 5 6 3 7 Penetration Max 4 | . . . . . . . . . . . . . . . . 2 . . . . . . 1 . 1 1 . 1 1 . 1 3 . 4 3 Secondary Targets 36 | . 3 . 1 . . 4 . 2 1 . . . 6 . 1 1 . . . 1 5 . 1 1 . . . 2 5 . 2 . . . . Max Gunslinging Chain 1 | . 1 . 1 . . 1 . 1 1 . . . 1 . 1 1 . . . 1 1 . 1 1 . . . 1 1 . 1 . . . . Shots Hit Robots 2080 | 17 25 13 72 8 98 77 18 13 87 8 57 44 74 . 28 113 28 1 5 31 176 . 76 72 12 34 5 87 63 . 190 96 54 95 303 Core Hits 1450 | 8 14 5 107 3 42 51 7 6 55 5 23 27 42 . 21 74 13 1 4 24 110 . 56 27 6 18 3 47 36 . 102 99 120 91 203 Critical Kills 174 | . . . . . 3 . . . . . . . . . 5 8 . . . . . . . . . 3 2 11 9 . 20 25 2 36 50 Critical Parts Destroyed 198 | . . . . . 1 . . . . . . . . . 6 11 . . . . . . 3 . . 5 . 9 7 . 31 29 1 35 60 Critical Strikes 434 | . . . . . 4 . . . 2 1 3 2 7 . 11 22 4 . . 1 5 . 4 1 . 8 2 20 17 . 64 54 4 73 125 Burn 30 | . . . . . . . . . 2 1 3 2 7 . . 3 4 . . 1 5 . 1 1 . . . . . . . . . . . Meltdown 16 | . . . . . 3 . . . . . . . . . . . . . . . . . . . . . . . . . 4 1 1 1 6 Destroy 378 | . . . . . 1 . . . . . . . . . 11 19 . . . . . . . . . 8 2 20 17 . 60 53 3 72 112 Blast 2 | . . . . . . . . . . . . . . . . . . . . . . . . . . . . . . . . . . . 2 Detonate 3 | . . . . . . . . . . . . . . . . . . . . . . . 3 . . . . . . . . . . . . Sunder 5 | . . . . . . . . . . . . . . . . . . . . . . . . . . . . . . . . . . . 5 Melee Attacks 11 | . . . . . 3 1 . 4 3 . . . . . . . . . . . . . . . . . . . . . . . . . . Impact 11 | . . . . . 3 1 . 4 3 . . . . . . . . . . . . . . . . . . . . . . . . . . Slashing . | . . . . . . . . . . . . . . . . . . . . . . . . . . . . . . . . . . . . Piercing . | . . . . . . . . . . . . . . . . . . . . . . . . . . . . . . . . . . . . Sneak Attacks . | . . . . . . . . . . . . . . . . . . . . . . . . . . . . . . . . . . . . Combat Hostiles . | . . . . . . . . . . . . . . . . . . . . . . . . . . . . . . . . . . . . Follow-up Attacks . | . . . . . . . . . . . . . . . . . . . . . . . . . . . . . . . . . . . . Damage Inflicted 82017 | 216 539 163 1819 162 2330 1903 184 251 3704 221 1472 1356 2287 . 1118 3008 722 21 174 962 5820 . 3543 1907 359 949 254 3083 1557 . 4783 5330 7520 4462 19838 Guns 33605 | 216 316 163 1012 . 237 1511 138 248 1534 64 1121 831 1406 . 206 1782 722 21 174 962 5359 . 1994 1907 359 949 247 3083 1557 . 1770 1028 360 810 1518 Cannons 24901 | . . . 123 162 1812 62 . . 424 157 . . . . . . . . . . 178 . . . . . . . . . 941 2943 516 1641 15942 Explosions 23434 | . 223 . 684 . 281 330 46 . 1746 . 351 525 881 . 912 1226 . . . . 271 . 1549 . . . . . . . 2072 1359 6589 2011 2378 Melee . | . . . . . . . . . . . . . . . . . . . . . . . . . . . . . . . . . . . . Ramming 77 | . . . . . . . . 3 . . . . . . . . . . . . 12 . . . . . 7 . . . . . 55 . . Kinetic 13038 | 216 . 163 . . 237 . . . 89 . . . . . 162 484 . . . . . . . . 359 949 247 3083 1557 . 1652 713 53 913 2161 Thermal 48802 | . 223 . 1135 162 1812 392 137 248 2979 221 1208 850 1406 . 44 1348 722 21 174 962 5537 . 2260 1907 . . . . . . 941 3258 6969 1538 12348 Explosive 11737 | . . . 667 . 168 . . . 468 . . . 317 . 912 1031 . . . . . . . . . . . . . . 2072 1359 443 1922 2378 Electromagnetic 4906 | . 316 . 17 . 113 1511 47 . 168 . 264 506 564 . . 145 . . . . 271 . 895 . . . . . . . . . . 89 . Impact 118 | . . . . . . . . . . . . . . . . . . . . . . . . . . . . . . . 118 . . . . Slashing . | . . . . . . . . . . . . . . . . . . . . . . . . . . . . . . . . . . . . Piercing . | . . . . . . . . . . . . . . . . . . . . . . . . . . . . . . . . . . . . Entropic 3339 | . . . . . . . . . . . . . . . . . . . . . . . 388 . . . . . . . . . . . 2951 Highest Corruption 38 | . . . . . . . 1 . 1 1 1 3 3 3 3 2 2 2 2 . 9 8 13 13 38 38 33 1 3 3 8 3 7 8 17 Average Corruption 5 | . . . . . . . 1 . 1 1 1 2 3 3 3 1 2 2 2 . 4 7 10 12 27 34 32 1 2 3 6 2 4 4 10 Corruption Purged 35 | . . . . . . . . . . . . . . . . . . . . . 4 . . 2 . 6 . . . . 5 1 . . 17 Corruption Blocked . | . . . . . . . . . . . . . . . . . . . . . . . . . . . . . . . . . . . . Effects 547 | . . . . . . . 2 . 7 5 8 17 31 2 35 3 13 13 1 . 40 3 36 55 29 23 24 11 19 19 46 24 22 13 46 Message Errors 116 | . . . . . . . . . 1 1 1 1 5 . 9 . 4 3 1 . 6 2 5 15 6 7 4 2 7 6 9 7 2 3 9 Matter Fused 143 | . . . . . . . 1 . 2 2 2 7 8 . 10 . 4 6 . . 14 . 10 12 6 7 7 2 4 4 10 4 7 5 9 Heat Flow Errors 61 | . . . . . . . . . 1 . 1 1 7 . . 1 . . . . 5 . 4 6 1 3 4 2 4 3 2 2 5 2 7 Energy Discharges 63 | . . . . . . . . . . 1 1 3 4 1 4 1 3 2 . . 2 . 3 4 4 . 2 2 2 4 9 3 2 1 5 Parts Rejected 8 | . . . . . . . . . . . . . . . . . . . . . 1 . . 1 1 . . . . . 1 2 2 . . Parts Fused 6 | . . . . . . . . . . . . . 1 . 1 . . . . . . . 1 . . . 1 . 1 . . . . . 1 Data Loss (minor) 58 | . . . . . . . . . 2 1 2 2 5 1 5 . 2 1 . . 3 1 5 3 6 . 1 1 . 2 5 4 3 . 3 Data Loss (major) 31 | . . . . . . . 1 . 1 . . 1 . . 3 1 . . . . 6 . 4 4 2 3 1 . . . 1 . 1 1 1 Misfires 24 | . . . . . . . . . . . . 1 . . 3 . . 1 . . 1 . 1 7 1 . 3 . . . 2 . . . 4 Alerts 11 | . . . . . . . . . . . . 1 . . . . . . . . 1 . 1 . . . . 2 1 . 2 1 . . 2 Misdirections 3 | . . . . . . . . . . . . . . . . . . . . . . . . 1 . 1 1 . . . . . . . . Weapon Failures 23 | . . . . . . . . . . . 1 . 1 . . . . . . . 1 . 2 2 2 2 . . . . 5 1 . 1 5 Overload Shots 4 | . . . . . . . . . . . . . . . . . . . . . 2 . . . . . . 1 . . . 1 . . . Overflow Damage 1472 | . 4 . 2 3 . . . . 116 3 . . . . . 157 . . . . . . 36 . . . . . . . 137 180 195 209 430 Projectiles 591 | . . . . 3 . . . . 34 3 . . . . . . . . . . . . . . . . . . . . 28 47 64 110 302 Explosions 881 | . 4 . 2 . . . . . 82 . . . . . . 157 . . . . . . 36 . . . . . . . 109 133 131 99 128 Melee . | . . . . . . . . . . . . . . . . . . . . . . . . . . . . . . . . . . . . Knockbacks 8 | . . . . . . . . . . . . . . . . . . . . . . . . . . . . . . . . . . 1 7 Impact . | . . . . . . . . . . . . . . . . . . . . . . . . . . . . . . . . . . . . Kinetic 8 | . . . . . . . . . . . . . . . . . . . . . . . . . . . . . . . . . . 1 7 Secondary . | . . . . . . . . . . . . . . . . . . . . . . . . . . . . . . . . . . . . Self-Inflicted Damage 843 | . . . 27 . . 20 47 1 186 . . . 19 . . . . . . . 59 . 11 . . . . . . . . 75 303 . 95 Shots 28 | . . . 1 . . 1 1 . 4 . . . 1 . . . . . . . 6 . 1 . . . . . . . . 1 11 . 1 Rammed 1 | . . . . . . . . 1 . . . . . . . . . . . . . . . . . . . . . . . . . . . Targets Rammed 6 | . . . . . . . . 1 . . . . . . . . . . . . 1 . . . . . 1 . . . . . 3 . . Kicked 5 | . . . . . . . . . . . . . . . . . . . . . 1 . . . . . 1 . . . . . 3 . . Crushed . | . . . . . . . . . . . . . . . . . . . . . . . . . . . . . . . . . . . . Highest Temperature 452 | . 135 2 216 30 66 144 36 52 248 168 303 235 452 . 187 205 246 64 88 84 427 . 390 340 144 190 244 247 330 236 352 362 237 330 390 Average Temperature 75 | . 52 2 44 12 20 32 13 21 62 42 116 83 127 . 54 57 84 34 38 17 78 . 120 134 105 87 85 77 82 46 92 76 72 56 87 Received Heat Transfer 2999 | . 6 69 162 . 351 135 . 44 125 . 180 144 231 . 180 129 24 . 16 9 89 . 76 38 . . 27 53 34 . 525 80 88 33 151 Effects 8 | . . . . . . . . . . . . . 4 . . . . . . . 1 . . 1 . . . . . . 1 . . . 1 Shutdowns 1 | . . . . . . . . . . . . . . . . . . . . . . . . . . . . . . . 1 . . . . Energy Bleed 1 | . . . . . . . . . . . . . . . . . . . . . . . . 1 . . . . . . . . . . . Interference 4 | . . . . . . . . . . . . . 3 . . . . . . . 1 . . . . . . . . . . . . . . Matter Decay 1 | . . . . . . . . . . . . . . . . . . . . . . . . . . . . . . . . . . . 1 Short Circuit 1 | . . . . . . . . . . . . . 1 . . . . . . . . . . . . . . . . . . . . . . Siege Activations 25 | . . . . . . . . . . . 1 . 1 . 1 . . . . . . . . . . . . . . . . . . 8 14 Total Turns 851 | . . . . . . . . . . . 5 . 14 . 3 . . . . . . . . . . . . . . . . . . 80 749 Longest Duration 362 | . . . . . . . . . . . 5 . 14 . 3 . . . . . . . . . . . . . . . . . . 21 362 Martial Activations . | . . . . . . . . . . . . . . . . . . . . . . . . . . . . . . . . . . . . Shielding Activations 14 | . . . . . . . . . . . . . . . . . . . . . . . . . . . . 1 1 . 12 . . . . Total Turns 207 | . . . . . . . . . . . . . . . . . . . . . . . . . . . . 13 11 . 183 . . . . Longest Duration 53 | . . . . . . . . . . . . . . . . . . . . . . . . . . . . 13 11 . 53 . . . . Robots Disrupted 1 | . . . . . . . . . . . . . . . . . . . . . . . 1 . . . . . . . . . . . . Combat Hostiles 1 | . . . . . . . . . . . . . . . . . . . . . . . 1 . . . . . . . . . . . . Robots Corrupted 14 | . 1 . . . . 3 . . . . 1 . 3 . . . . . . . . . 6 . . . . . . . . . . . . Combat Hostiles 10 | . . . . . . 2 . . . . 1 . 3 . . . . . . . . . 4 . . . . . . . . . . . . Parts Fried 25 | . 2 . . . . 7 . . 2 . 2 2 1 . . . . . . . 1 . 8 . . . . . . . . . . . . Impact Corruptions . | . . . . . . . . . . . . . . . . . . . . . . . . . . . . . . . . . . . . Robots Melted 43 | . . . . . 3 . . . 2 . 2 . 2 . . 2 3 . . 2 6 . . 1 . . . . . . 4 1 7 1 7 Combat Hostiles 38 | . . . . . 2 . . . 1 . 1 . 2 . . 1 3 . . 2 5 . . 1 . . . . . . 4 1 7 1 7 Parts Melted 191 | . . . 1 . 12 1 . 3 15 . 14 3 15 . . 13 8 . 2 2 31 . 9 9 . . . 2 1 . 4 5 29 3 9 Heat Transferred 59428 | . 250 . 1487 296 3256 611 198 409 4255 435 2335 1871 3518 . 100 3150 2050 50 300 1825 8911 . 2855 3063 . . . . . . 740 1864 9343 1077 5179 Parts Sabotaged . | . . . . . . . . . . . . . . . . . . . . . . . . . . . . . . . . . . . . Parts Stolen . | . . . . . . . . . . . . . . . . . . . . . . . . . . . . . . . . . . . . Parts Stripped . | . . . . . . . . . . . . . . . . . . . . . . . . . . . . . . . . . . . . Power Chain Reactions 14 | . 3 . 1 . . 5 1 . . . 1 1 1 . . . . . . . . . 1 . . . . . . . . . . . . Alert | -11 -10 -10 -9 -9 -8 -8 -8 -8 -6 -6 -6 -6 -6 -6 -5 -5 -5 -5 -5 -4 -4 -4 -4 -4 -4 -4 -4 -3 -3 -3 -2 -2 -2 -1 -1 ------- Run | Yrd Mat Min Mat Min Mat Sto Rec Scr Fac Was Fac Low Low Dat Pro Fac Upp Upp War Pro Fac Was Fac Ext Cet Arc Hub Res Arm Lab Res Tes Sec Acc Com Maximum Alert Level 5 | . . . 1 . 2 2 . . 2 . . . . . . 3 . . . . 2 . 2 2 2 1 2 1 1 . 4 5 5 5 5 Low Security (%) 42 | 100 100 100 78 100 80 25 100 . 20 100 100 . . . . 6 . . . . 21 100 35 . . 23 48 35 71 . 26 . . . 36 Level 1 23 | . . . 21 . 19 72 . . 27 . . . . . . 15 . . . . 54 . 16 56 60 76 40 64 28 . 9 . . . . Level 2 11 | . . . . . . 1 . . 52 . . . . . . 34 . . . . 24 . 48 43 39 . 11 . . . 1 . . . . Level 3 5 | . . . . . . . . . . . . . . . . 43 . . . . . . . . . . . . . . 44 4 . . . Level 4 10 | . . . . . . . . . . . . . . . . . . . . . . . . . . . . . . . 18 66 61 44 26 Level 5 4 | . . . . . . . . . . . . . . . . . . . . . . . . . . . . . . . . 14 18 55 2 High Security 3 | . . . . . . . . . . . . . . . . . . . . . . . . . . . . . . . . 13 19 . 34 Max Security . | . . . . . . . . . . . . . . . . . . . . . . . . . . . . . . . . . . . . Peak Influence 2759 | 10 155 70 275 103 418 409 133 . 468 146 147 . . . . 978 . . . . 454 157 640 583 485 269 478 299 248 . 1182 2097 2463 2341 2759 Initial 1477 | . . . 7 103 . 174 133 . . 146 . . . . . 300 . . . . 157 157 67 254 279 130 61 190 111 . . 660 1179 1477 1468 Average 484 | 1 57 11 111 16 116 258 42 . 312 22 61 . . . . 616 . . . . 290 130 336 386 388 229 186 202 165 . 644 1428 1537 1809 1427 Influence Increases 21241 | 35 266 173 742 88 861 813 264 . 896 20 289 179 465 . 265 1542 65 20 . 190 1157 . 857 819 414 317 699 661 555 . 1946 1995 1684 1411 1553 Destroy 0b10 Robot/C 10540 | . 200 120 480 60 480 460 40 . 500 20 180 140 380 . 200 400 40 20 . 160 640 . 340 400 160 80 260 320 280 . 920 700 620 880 1060 Destroy 0b10 Robot/NC 710 | 35 15 . 55 . 25 45 . . 20 . 10 . . . 5 65 . . . 10 45 . 25 20 10 45 25 30 10 . 55 45 55 35 25 Destroy Leader 2172 | . 34 20 150 10 160 134 . . 142 . 50 20 40 . 30 84 10 . . 20 142 . 90 36 . . 50 84 82 . 232 104 136 172 140 Allied During Kill 1186 | . . 3 . 3 . 94 . . . . . 4 . . . . . . . . . . . 287 170 125 291 . . . 208 1 . . . Trap Triggered on 0b10 20 | . . . . . . . . . . . . . . . . . . . . . . . . . . . . . . . . . 20 . . Successful Hack 250 | . . . . . 5 13 5 . 4 . 40 . . . . 22 . . . . 62 . 4 . . . 14 14 6 . 30 27 4 . . Select Force Hacks 210 | . . . . . . . 210 . . . . . . . . . . . . . . . . . . . . . . . . . . . . Disable Machine 1740 | . 15 15 15 15 75 15 . . 90 . . . . . . 360 . . . . 15 . 285 45 . 45 15 30 75 . 90 255 195 30 60 Anti-Garrison Action 350 | . . . . . . . . . . . . . . . . 150 . . . . . . . . . . . . . . . 200 . . . Destroy Structure 2353 | . 2 . 42 . 11 22 9 . 110 . 9 . . . . 146 . . . . 88 . 98 16 74 22 44 168 102 . 396 408 264 174 148 Advance Influence 450 | . . . . . . . . . . . . . . . . 300 . . . . 150 . . . . . . . . . . . . . . Partial Spotted 45 | . . . . . . . . . . . . . . . . . . . . . 15 . . . . . . . . . . 15 . . 15 Lose Combat Pursuer 1215 | . . 15 . . 105 30 . . 30 . . 15 45 . 30 15 15 . . . . . 15 15 . . . 15 . . 15 240 390 120 105 Influence Decreases 18482 | 35 266 154 495 354 446 885 607 . 477 439 196 272 343 122 265 694 809 124 . 178 718 354 434 840 586 467 513 811 584 184 772 1072 1318 1578 1090 Entered New Map 6225 | . . . 12 163 . 241 210 . . 273 . 35 . 122 . . 315 21 . . 5 294 30 266 220 197 116 173 102 184 . 514 918 986 828 Time Decay 10957 | 35 266 139 483 191 446 464 397 . 437 166 186 207 303 . 255 534 494 103 . 178 693 50 404 494 246 190 197 618 482 . 597 498 380 562 262 Lost Part 260 | . . . . . . . . . 40 . 10 . 40 . 10 10 . . . . 20 10 . . . . . 20 . . 20 60 20 . . Lost Ally 890 | . . 15 . . . 180 . . . . . 30 . . . . . . . . . . . 80 120 80 200 . . . 155 . . 30 . Purge Threat 150 | . . . . . . . . . . . . . . . . 150 . . . . . . . . . . . . . . . . . . . Squads Dispatched 145 | . . . 1 . 4 2 . . 11 . 4 . 1 . . 8 . . . . 9 . 3 . . . 3 5 5 . 17 23 17 14 18 Investigation 10 | . . . . . 1 . . . 1 . . . . . . 2 . . . . 1 . . . . . . 2 . . 2 1 . . . Extermination 36 | . . . . . . . . . 4 . 1 . . . . 2 . . . . 6 . 2 . . . 1 . 3 . 6 3 2 4 2 Reinforcement 37 | . . . 1 . 3 2 . . 3 . 3 . . . . . . . . . 2 . 1 . . . 2 3 2 . 4 7 4 . . Assault 54 | . . . . . . . . . . . . . 1 . . 2 . . . . . . . . . . . . . . 2 12 11 10 16 Garrison 8 | . . . . . . . . . 3 . . . . . . 2 . . . . . . . . . . . . . . 3 . . . . Intercept . | . . . . . . . . . . . . . . . . . . . . . . . . . . . . . . . . . . . . Searches Triggered . | . . . . . . . . . . . . . . . . . . . . . . . . . . . . . . . . . . . . Unchained Authorized 2 | . . . . . . . . . . . . . . . . . . . . . . . . . . . . . . . 1 1 . . . Data Miner Redirects 4 | . . . . . . . . . . . . . . . . 1 . . . . . . . . . . . . . . 3 . . . . Construction Impeded 4 | . . . . . 1 1 . . . . 1 . . . . . . . . . . . . . . . . . . . . . 1 . . Haulers Reinforced 4 | . . . . . . . . . 1 . . . . . . . . . . . . . 1 . . . . 1 . . . 1 . . . Active Scanning Responses . | . . . . . . . . . . . . . . . . . . . . . . . . . . . . . . . . . . . . Cargo Convoy Interrupts . | . . . . . . . . . . . . . . . . . . . . . . . . . . . . . . . . . . . . Stealth | -11 -10 -10 -9 -9 -8 -8 -8 -8 -6 -6 -6 -6 -6 -6 -5 -5 -5 -5 -5 -4 -4 -4 -4 -4 -4 -4 -4 -3 -3 -3 -2 -2 -2 -1 -1 --------- Run | Yrd Mat Min Mat Min Mat Sto Rec Scr Fac Was Fac Low Low Dat Pro Fac Upp Upp War Pro Fac Was Fac Ext Cet Arc Hub Res Arm Lab Res Tes Sec Acc Com Distress Signals 53 | . . . 5 1 7 4 . . 1 . . . . . . . . . . 1 . . 2 3 2 . 3 2 3 . 3 2 3 . 11 Communications Jammed 380 | . . . . . . . . . . . . . . . . 13 . . 75 2 11 2 24 42 . 1 1 53 17 . 4 65 . 20 50 Distress Signals 372 | . . . . . . . . . . . . . . . . 12 . . 75 . 11 2 24 42 . 1 1 53 17 . 1 63 . 20 50 Times Spotted 840 | . 16 7 35 5 41 29 2 13 28 1 10 17 25 . 12 24 4 1 28 10 39 5 21 20 7 9 9 32 23 . 36 73 87 53 118 Peak Tracking Total 25 | . 6 3 4 2 8 6 1 3 6 . 4 4 5 . 5 4 3 1 7 1 5 5 6 4 5 2 3 4 4 . 4 12 25 6 14 Tactical Retreats 48 | . . 1 . . 5 2 . . 2 . . 1 3 . 2 1 1 . . . . . 1 1 . . . 1 . . 1 11 8 3 4 Traps | -11 -10 -10 -9 -9 -8 -8 -8 -8 -6 -6 -6 -6 -6 -6 -5 -5 -5 -5 -5 -4 -4 -4 -4 -4 -4 -4 -4 -3 -3 -3 -2 -2 -2 -1 -1 ------- Run | Yrd Mat Min Mat Min Mat Sto Rec Scr Fac Was Fac Low Low Dat Pro Fac Upp Upp War Pro Fac Was Fac Ext Cet Arc Hub Res Arm Lab Res Tes Sec Acc Com Traps Triggered 25 | . . . . . 1 2 . . 6 . . . . . . 1 . . . . 6 . 2 3 . . . 1 . . 1 1 . . 1 Indirectly 1 | . . . . . . . . . . . . . . . . 1 . . . . . . . . . . . . . . . . . . . Trap Hack Attempts . | . . . . . . . . . . . . . . . . . . . . . . . . . . . . . . . . . . . . Triggered . | . . . . . . . . . . . . . . . . . . . . . . . . . . . . . . . . . . . . Disarmed . | . . . . . . . . . . . . . . . . . . . . . . . . . . . . . . . . . . . . Reprogrammed 6 | . . . . . . . . . . . . . . . . . . . . . . . . . . . . . . . . . 6 . . Reused 3 | . . . . . . . . . . . . . 1 . . . . . . . . . . . . . . . . . . . 2 . . Traps Extracted . | . . . . . . . . . . . . . . . . . . . . . . . . . . . . . . . . . . . . Installed 1 | . . . . . . . . . . . . . 1 . . . . . . . . . . . . . . . . . . . . . . Triggered 3 | . . . . . . . . . . . . . 1 . . . . . . . . . . . . . . . . . . . 2 . . Most Traps Carried 1 | . . . . . . . . . . . . . 1 . . . . . . . . . . . . . . . . . . . . . . Machines | -11 -10 -10 -9 -9 -8 -8 -8 -8 -6 -6 -6 -6 -6 -6 -5 -5 -5 -5 -5 -4 -4 -4 -4 -4 -4 -4 -4 -3 -3 -3 -2 -2 -2 -1 -1 ---------- Run | Yrd Mat Min Mat Min Mat Sto Rec Scr Fac Was Fac Low Low Dat Pro Fac Upp Upp War Pro Fac Was Fac Ext Cet Arc Hub Res Arm Lab Res Tes Sec Acc Com Machines Disabled 131 | . 1 1 1 1 5 1 . 5 6 . . . . . . 25 . . . . 1 . 19 3 . 3 1 2 5 8 6 18 13 2 4 Max in Single Turn 8 | . 1 . 1 1 1 1 . 1 4 . . . . . . 8 . . . . 1 . 4 1 . 1 . 1 1 1 1 3 2 1 1 Garrison Access 6 | . . . . . . . . . . . . . . . . 1 . . . . 2 . . . . . . 2 . . . 1 . . . Machines Repaired . | . . . . . . . . . . . . . . . . . . . . . . . . . . . . . . . . . . . . Machines Dismantled . | . . . . . . . . . . . . . . . . . . . . . . . . . . . . . . . . . . . . Machines Sabotaged . | . . . . . . . . . . . . . . . . . . . . . . . . . . . . . . . . . . . . Overloaded Fab Kills . | . . . . . . . . . . . . . . . . . . . . . . . . . . . . . . . . . . . . Hacking | -11 -10 -10 -9 -9 -8 -8 -8 -8 -6 -6 -6 -6 -6 -6 -5 -5 -5 -5 -5 -4 -4 -4 -4 -4 -4 -4 -4 -3 -3 -3 -2 -2 -2 -1 -1 --------- Run | Yrd Mat Min Mat Min Mat Sto Rec Scr Fac Was Fac Low Low Dat Pro Fac Upp Upp War Pro Fac Was Fac Ext Cet Arc Hub Res Arm Lab Res Tes Sec Acc Com Machines Accessed 137 | . 2 1 3 . 7 13 10 . 4 . 4 2 . 4 . 8 1 . 4 . 21 . 10 1 . . 3 5 3 1 9 7 8 4 2 Terminals 84 | . 2 1 2 . 7 12 3 . 2 . 3 . . . . 4 . . . . 11 . 8 1 . . 3 3 3 . 5 6 5 1 2 Fabricators 7 | . . . . . . . . . 2 . . . . . . 3 . . . . 1 . . . . . . . . . . . . 1 . Repair Stations 2 | . . . . . . . . . . . 1 . . . . . . . . . 1 . . . . . . . . . . . . . . Recycling Units 12 | . . . . . . . 7 . . . . . . . . . . . . . 3 . . . . . . . . . 1 . . 1 . Scanalyzers 14 | . . . 1 . . . . . . . . . . . . 1 . . . . 3 . 1 . . . . 1 . . 3 . 3 1 . Garrison Access 6 | . . . . . . 1 . . . . . . . . . . . . . . 2 . 1 . . . . 1 . . . 1 . . . Total Hacks 279 | . 3 1 7 . 13 29 12 . 9 . 10 6 . 28 . 22 1 . 7 . 40 . 19 1 . . 4 14 3 1 15 12 14 6 2 Successful 145 | . 2 . 3 . 3 12 9 . 3 . 5 6 . 28 . 16 1 . 7 . 19 . 5 1 . . 1 5 1 1 5 5 6 1 . Failed 133 | . 1 1 3 . 10 17 3 . 6 . 5 . . . . 6 . . . . 21 . 14 . . . 3 9 2 . 10 7 8 5 2 Catastrophic 33 | . . 1 . . 3 4 1 . 2 . 1 . . . . . . . . . . . 5 . . . 2 1 . . 3 4 1 4 1 Database Lockouts 1 | . . . 1 . . . . . . . . . . . . . . . . . . . . . . . . . . . . . . . . Manual 71 | . . . . . 6 2 10 . 3 . 1 . . . . 9 . . 1 . 7 . 7 . 1 . 2 . 1 . 2 10 6 2 1 Terminals 158 | . 3 1 4 . 13 27 4 . 5 . 7 . . . . 10 . . . . 19 . 16 1 . . 4 10 3 . 8 11 9 1 2 Fabricators 19 | . . . . . . . . . 4 . . . . . . 10 . . . . 3 . . . . . . . . . . . . 2 . Repair Stations 5 | . . . . . . . . . . . 3 . . . . . . . . . 2 . . . . . . . . . . . . . . Recycling Units 15 | . . . . . . . 8 . . . . . . . . . . . . . 4 . . . . . . . . . 2 . . 1 . Scanalyzers 28 | . . . 3 . . . . . . . . . . . . 2 . . . . 7 . 2 . . . . 2 . . 5 . 5 2 . Garrison Access 11 | . . . . . . 2 . . . . . . . . . . . . . . 5 . 1 . . . . 2 . . . 1 . . . Terminal Hacks 87 | . 2 . 2 . 3 11 1 . . . 2 6 . 28 . 5 1 . 7 . 6 . 2 1 . . 1 3 . 1 2 2 1 . . Record 23 | . . . . . . . . . . . . 5 . 11 . . . . 6 . . . . . . . . . . 1 . . . . . Part Schematic 10 | . . . . . . . . . . . . . . 10 . . . . . . . . . . . . . . . . . . . . . Robot Schematic 4 | . . . . . . . . . . . . . . 4 . . . . . . . . . . . . . . . . . . . . . Robot Analysis 1 | . . . . . . . 1 . . . . . . . . . . . . . . . . . . . . . . . . . . . . Prototype ID Bank 4 | . . . . . . 1 . . . . . . . 3 . . . . . . . . . . . . . . . . . . . . . Open Door 9 | . . . . . . 6 . . . . . 1 . . . . 1 . 1 . . . . . . . . . . . . . . . . Level Access Points 1 | . . . . . . . . . . . . . . . . . . . . . 1 . . . . . . . . . . . . . . Branch Access Points 4 | . . . . . 1 . . . . . 1 . . . . 1 . . . . . . . . . . . . . . 1 . . . . Machine Index 1 | . . . . . . . . . . . . . . . . 1 . . . . . . . . . . . . . . . . . . . Terminal Index 1 | . . . . . . . . . . . 1 . . . . . . . . . . . . . . . . . . . . . . . . Alert Level 2 | . . . . . . . . . . . . . . . . 1 . . . . . . . . . . . . . . . 1 . . . Unreport Threat 1 | . . . . . . . . . . . . . . . . 1 . . . . . . . . . . . . . . . . . . . Locate Traps 7 | . 2 . 1 . . 1 . . . . . . . . . 1 . . . . 1 . . 1 . . . . . . . . . . . Reprogram Traps 1 | . . . . . . . . . . . . . . . . . . . . . . . . . . . . . . . . . 1 . . Maintenance Status 2 | . . . . . . . . . . . . . . . . . . . . . . . 1 . . . . . . . . 1 . . . Recall Extermination 1 | . . . . . . . . . . . . . . . . . . . . . 1 . . . . . . . . . . . . . . Hauler Manifests 5 | . . . 1 . . 1 . . . . . . . . . . . . . . 1 . 1 . . . . 1 . . . . . . . Registered Components 3 | . . . . . . . . . . . . . . . . . . . . . 1 . . . . . . 1 . . 1 . . . . Registered Prototypes 1 | . . . . . . . . . . . . . . . . . . . . . 1 . . . . . . . . . . . . . . Zone Layout 6 | . . . . . 2 2 . . . . . . . . . . . . . . . . . . . . 1 1 . . . . . . . Fabricator Hacks 8 | . . . . . . . . . 2 . . . . . . 5 . . . . 1 . . . . . . . . . . . . . . Network Status 1 | . . . . . . . . . 1 . . . . . . . . . . . . . . . . . . . . . . . . . . Load Schematic 5 | . . . . . . . . . . . . . . . . 4 . . . . 1 . . . . . . . . . . . . . . Build 2 | . . . . . . . . . 1 . . . . . . 1 . . . . . . . . . . . . . . . . . . . Repair Station Hacks 4 | . . . . . . . . . . . 2 . . . . . . . . . 2 . . . . . . . . . . . . . . Scan Component 2 | . . . . . . . . . . . 1 . . . . . . . . . 1 . . . . . . . . . . . . . . Repair 2 | . . . . . . . . . . . 1 . . . . . . . . . 1 . . . . . . . . . . . . . . Recycling Unit Hacks 3 | . . . . . . . . . . . . . . . . . . . . . 3 . . . . . . . . . . . . . . Retrieve Components 3 | . . . . . . . . . . . . . . . . . . . . . 3 . . . . . . . . . . . . . . Scanalyzer 13 | . . . 1 . . . . . . . . . . . . 2 . . . . 3 . 1 . . . . 1 . . 2 . 2 1 . Insert Component 8 | . . . . . . . . . . . . . . . . . . . . . 3 . 1 . . . . . . . 2 . 1 1 . Retrieve Study 5 | . . . 1 . . . . . . . . . . . . 2 . . . . . . . . . . . 1 . . . . 1 . . Garrison Access Hacks 3 | . . . . . . . . . . . . . . . . . . . . . 2 . . . . . . 1 . . . . . . . Seal Access 3 | . . . . . . . . . . . . . . . . . . . . . 2 . . . . . . 1 . . . . . . . Unauthorized Hacks 27 | . . . . . . 1 8 . 1 . 1 . . . . 4 . . . . 2 . 2 . . . . . 1 . 1 3 3 . . Terminals 15 | . . . . . . 1 1 . 1 . 1 . . . . 2 . . . . 1 . 2 . . . . . 1 . . 2 3 . . Track 4 | . . . . . . . . . . . . . . . . . . . . . . . . . . . . . . . . 2 2 . . Assimilate 1 | . . . . . . . . . . . . . . . . . . . . . . . . . . . . . 1 . . . . . . Botnet 8 | . . . . . . 1 1 . 1 . 1 . . . . 1 . . . . 1 . 2 . . . . . . . . . . . . Operators 2 | . . . . . . . . . . . . . . . . 1 . . . . . . . . . . . . . . . . 1 . . Fabricators 3 | . . . . . . . . . . . . . . . . 2 . . . . 1 . . . . . . . . . . . . . . Recompile 3 | . . . . . . . . . . . . . . . . 2 . . . . 1 . . . . . . . . . . . . . . Repair Stations . | . . . . . . . . . . . . . . . . . . . . . . . . . . . . . . . . . . . . Recycling Units 8 | . . . . . . . 7 . . . . . . . . . . . . . . . . . . . . . . . 1 . . . . Tunnel 7 | . . . . . . . 7 . . . . . . . . . . . . . . . . . . . . . . . . . . . . Scrapoids 1 | . . . . . . . . . . . . . . . . . . . . . . . . . . . . . . . 1 . . . . Scanalyzers . | . . . . . . . . . . . . . . . . . . . . . . . . . . . . . . . . . . . . Garrison Access 1 | . . . . . . . . . . . . . . . . . . . . . . . . . . . . . . . . 1 . . . Jam 1 | . . . . . . . . . . . . . . . . . . . . . . . . . . . . . . . . 1 . . . Data Cores Recovered 4 | . 1 . . . . 1 . . . . . . . . . . . . . . 1 . . . . . . . . . . . 1 . . Used 2 | . . . . . . 1 . . . . . . . . . . . . . . . . . . . . . . . . . . 1 . . Hacking Detections 94 | . . 1 . . 6 10 1 . 4 . 4 . . . . 6 . . . . 17 . 9 1 . . 3 4 2 . 9 6 5 4 2 Full Trace Events 2 | . . . . . . . . . . . . . . . . . . . . . . . . . . . . 1 . . 1 . . . . Feedback Events 1 | . . . . . . . . . . . . . . . . . . . . . . . . . . . . 1 . . . . . . . Corruption 1 | . . . . . . . . . . . . . . . . . . . . . . . . . . . . 1 . . . . . . . Feedback Blocked . | . . . . . . . . . . . . . . . . . . . . . . . . . . . . . . . . . . . . Robot Schematics Acquired 6 | . . . . . . . . . . . . . . 4 . . . . . . . . . . . . . . . . . 2 . . . Robots Built . | . . . . . . . . . . . . . . . . . . . . . . . . . . . . . . . . . . . . Authchips . | . . . . . . . . . . . . . . . . . . . . . . . . . . . . . . . . . . . . Time . | . . . . . . . . . . . . . . . . . . . . . . . . . . . . . . . . . . . . Total Robot Build Rating . | . . . . . . . . . . . . . . . . . . . . . . . . . . . . . . . . . . . . Part Schematics Acquired 15 | . . . . . . . . . . . . . . 10 . 5 . . . . . . . . . . . . . . . . . . . Parts Built 3 | . . . . . . . . . 2 . . . . . . 1 . . . . . . . . . . . . . . . . . . . Authchips 1 | . . . . . . . . . . . . . . . . 1 . . . . . . . . . . . . . . . . . . . Time 159 | . . . . . . . . . 117 . . . . . . 42 . . . . . . . . . . . . . . . . . . . Total Part Build Rating 18 | . . . . . . . . . 14 . . . . . . 4 . . . . . . . . . . . . . . . . . . . Part Studies Acquired 5 | . . . 1 . . . . . . . . . . . . 2 . . . . . . . . . . . 1 . . . . 1 . . Parts Repaired 2 | . . . . . . . . . . . 1 . . . . . . . . . 1 . . . . . . . . . . . . . . Time 96 | . . . . . . . . . . . 28 . . . . . . . . . 68 . . . . . . . . . . . . . . Parts Recycled . | . . . . . . . . . . . . . . . . . . . . . . . . . . . . . . . . . . . . Recycled Matter . | . . . . . . . . . . . . . . . . . . . . . . . . . . . . . . . . . . . . Retrieved Matter . | . . . . . . . . . . . . . . . . . . . . . . . . . . . . . . . . . . . . Retrieved Components 10 | . . . . . . . . . . . . . . . . . . . . . 10 . . . . . . . . . . . . . . Parts Scanalyzed 4 | . . . . . . . . . . . . . . . . . . . . . 2 . 1 . . . . . . . 1 . . . . Part Schematics Acquired . | . . . . . . . . . . . . . . . . . . . . . . . . . . . . . . . . . . . . Parts Damaged . | . . . . . . . . . . . . . . . . . . . . . . . . . . . . . . . . . . . . Bothacking | -11 -10 -10 -9 -9 -8 -8 -8 -8 -6 -6 -6 -6 -6 -6 -5 -5 -5 -5 -5 -4 -4 -4 -4 -4 -4 -4 -4 -3 -3 -3 -2 -2 -2 -1 -1 ------------ Run | Yrd Mat Min Mat Min Mat Sto Rec Scr Fac Was Fac Low Low Dat Pro Fac Upp Upp War Pro Fac Was Fac Ext Cet Arc Hub Res Arm Lab Res Tes Sec Acc Com Used RIF Installer . | . . . . . . . . . . . . . . . . . . . . . . . . . . . . . . . . . . . . Robots Hacked 2 | . . . . . . . . . . . . . . . . . . . . . 2 . . . . . . . . . . . . . . Non-combat 2 | . . . . . . . . . . . . . . . . . . . . . 2 . . . . . . . . . . . . . . Combat . | . . . . . . . . . . . . . . . . . . . . . . . . . . . . . . . . . . . . Robot Hacks Applied 2 | . . . . . . . . . . . . . . . . . . . . . 2 . . . . . . . . . . . . . . find_chute 2 | . . . . . . . . . . . . . . . . . . . . . 2 . . . . . . . . . . . . . . Relay Couplers Released 13 | . . . . . . . . . . . . . . . . 3 . . . . . . 4 . . . . 1 . . 4 1 . . . Machine Destruction 5 | . . . . . . . . . . . . . . . . 3 . . . . . . . . . . . 1 . . . 1 . . . Programmers 8 | . . . . . . . . . . . . . . . . . . . . . . . 4 . . . . . . . 4 . . . . Fabnet Peak Effective % . | . . . . . . . . . . . . . . . . . . . . . . . . . . . . . . . . . . . . Robots Rewired 25 | . . . . . . . 7 . . . . 2 1 . . . . . . . . . . 10 . . . . 4 . . 1 . . . Allies Hacked 1 | . . . . . . . . . . . . . . . . . . . . . . . . . . . . . . . 1 . . . . Hacks Repelled . | . . . . . . . . . . . . . . . . . . . . . . . . . . . . . . . . . . . . Allies | -11 -10 -10 -9 -9 -8 -8 -8 -8 -6 -6 -6 -6 -6 -6 -5 -5 -5 -5 -5 -4 -4 -4 -4 -4 -4 -4 -4 -3 -3 -3 -2 -2 -2 -1 -1 -------- Run | Yrd Mat Min Mat Min Mat Sto Rec Scr Fac Was Fac Low Low Dat Pro Fac Upp Upp War Pro Fac Was Fac Ext Cet Arc Hub Res Arm Lab Res Tes Sec Acc Com Total Allies 61 | . . 2 . 1 . 10 7 . . . . 2 1 . . . . . . . . . . 23 5 . . . 4 . 5 1 . . . Largest Group 19 | . . 2 . 1 . 10 7 7 1 . . 2 1 1 1 . . . . . . . . 19 19 15 11 . 4 4 5 1 . . . Highest-Rated Group 1081 | . . 50 . 31 . 173 74 74 7 . . 40 32 32 32 . . . . . . . . 927 1081 871 755 . 224 224 320 118 . . . Highest-Rated Ally 159 | . . 31 . 31 . 29 16 16 7 . . 20 32 32 32 . . . . . . . . 159 159 96 96 . 56 56 64 118 . . . Initial UFD Resources 38 | . . . . . . . . . 22 22 22 22 22 22 26 26 26 26 26 30 30 30 30 30 30 30 30 34 34 34 38 35 35 37 37 Total Orders 50 | . . . . . . 7 . 2 . . . 12 . . 2 . . . . . . . . 1 2 2 1 . 6 1 10 . . 4 . STAY 19 | . . . . . . 4 . 1 . . . . . . 1 . . . . . . . . . 1 1 1 . 4 1 5 . . . . FOLLOW 13 | . . . . . . 3 . 1 . . . . . . 1 . . . . . . . . . 1 1 . . 2 . 4 . . . . GUARD 1 | . . . . . . . . . . . . . . . . . . . . . . . . 1 . . . . . . . . . . . AID 1 | . . . . . . . . . . . . . . . . . . . . . . . . . . . . . . . 1 . . . . EXPLORE 10 | . . . . . . . . . . . . 7 . . . . . . . . . . . . . . . . . . . . . 3 . RETURN 6 | . . . . . . . . . . . . 5 . . . . . . . . . . . . . . . . . . . . . 1 . Ally Attacks 546 | . . 12 . 3 . 67 . 5 . . . 3 . . 1 . . . . . . . . 102 72 38 96 . . . 145 2 . . . Total Damage 15842 | . . 119 . 20 . 765 . 46 . . . 103 . . 25 . . . . . . . . 2843 2249 1132 3065 . . . 5063 412 . . . Kills 79 | . . 2 . . . 6 . 1 . . . 2 . . . . . . . . . . . 16 11 4 17 . . . 19 1 . . . Allies Corrupted 3 | . . . . . . 2 . . . . . . . . . . . . . . . . . 1 . . . . . . . . . . . Allies Melted 14 | . . . . . . . . 4 . . . . . . 1 . . . . . . . . . . . . . . . . . . . 9 Turrets Deployed 1 | . . . . . . . . . . . . . . . . . . . . . . . . . . . . . . . 1 . . . . Intel | -11 -10 -10 -9 -9 -8 -8 -8 -8 -6 -6 -6 -6 -6 -6 -5 -5 -5 -5 -5 -4 -4 -4 -4 -4 -4 -4 -4 -3 -3 -3 -2 -2 -2 -1 -1 ------- Run | Yrd Mat Min Mat Min Mat Sto Rec Scr Fac Was Fac Low Low Dat Pro Fac Upp Upp War Pro Fac Was Fac Ext Cet Arc Hub Res Arm Lab Res Tes Sec Acc Com Active Infowar (turns) 35401 | 12 364 725 1353 1052 1164 364 799 . 1542 1043 533 980 1698 129 1464 1409 1219 859 1138 1085 2843 109 974 1316 219 374 423 2070 1151 968 2072 974 413 1661 902 Optics 7 | . . . . . . . . . . . . . . . . . . . . . . . 7 . . . . . . . . . . . . Sensors 3323 | . . . . . . . . . 1 . . . . . . . . . . . . . . . . . . 789 899 966 668 . . . . IFF 14102 | . . . . . . . . . . . . 650 1698 129 1464 1287 1196 813 1138 868 2359 109 803 141 . . 408 1039 . . . . . . . Zeronet 1341 | . . . . . . . . . . . . . . . . . . . . . . . . . . . . . . . 1319 22 . . . Terrain 2 | . . . . . . . . . . . . . . . . 2 . . . . . . . . . . . . . . . . . . . Structural 7684 | . . . . . . . . . . . . . . . . 293 1162 809 1138 598 291 . 108 . . . . 273 . . 979 333 413 1207 80 Seismic 11108 | 12 364 725 1353 1052 1164 364 799 . 1541 1043 533 330 . . . . . . . . . . . . . . . . . . . . . 1112 716 T.N.C. 2 | . . . . . . . . . . . . . . . . . . . . . 2 . . . . . . . . . . . . . . Jamming 20769 | . . . . . . . . . . . . . . . . 1365 1160 859 750 1085 2841 109 974 1316 219 374 423 2068 1075 923 1816 869 . 1642 901 ECM 1 | . . . . . . . . . . . . . . . . . 1 . . . . . . . . . . . . . . . . . . Robot Analysis Total 1 | . . . . . . . 1 . . . . . . . . . . . . . . . . . . . . . . . . . . . . Derelict Logs Recovered 10 | . . 3 . . . . . . . . . 2 2 . . . 2 . . 1 . . . . . . . . . . . . . . . Drone Launches 11 | . . . . . . . . . . . . 8 . . . . . . . . . . . . . . . . . . . . . 3 . Drone Recoveries 6 | . . . . . . . . . . . . 6 . . . . . . . . . . . . . . . . . . . . . . . Exploration | -11 -10 -10 -9 -9 -8 -8 -8 -8 -6 -6 -6 -6 -6 -6 -5 -5 -5 -5 -5 -4 -4 -4 -4 -4 -4 -4 -4 -3 -3 -3 -2 -2 -2 -1 -1 ------------- Run | Yrd Mat Min Mat Min Mat Sto Rec Scr Fac Was Fac Low Low Dat Pro Fac Upp Upp War Pro Fac Was Fac Ext Cet Arc Hub Res Arm Lab Res Tes Sec Acc Com Turns Passed 44517 | 249 706 783 1690 1173 1663 1176 1142 2232 1821 1043 632 1380 1907 129 1561 1517 1318 859 1138 1085 2843 109 974 1316 534 381 423 2070 1258 1024 2131 1548 1111 1661 1930 Spaces Moved 24783 | 105 376 453 873 682 804 555 563 1337 995 628 264 607 897 80 672 889 860 632 733 732 1882 93 653 728 312 207 287 1281 759 284 1051 929 1036 850 694 Core 5 | 5 . . . . . . . . . . . . . . . . . . . . . . . . . . . . . . . . . . . Treads 6317 | 100 376 453 510 682 180 . . . . 555 264 607 897 80 646 . . . . . . . . . . . . . . . . . . 427 540 Legs 13589 | . . . . . 201 . . . . . . . . . 26 889 860 632 733 732 1882 93 653 728 312 207 287 1281 759 284 1051 929 627 423 . Wheels 4309 | . . . 363 . 423 555 563 1337 995 73 . . . . . . . . . . . . . . . . . . . . . . . . . Hover . | . . . . . . . . . . . . . . . . . . . . . . . . . . . . . . . . . . . . Flight . | . . . . . . . . . . . . . . . . . . . . . . . . . . . . . . . . . . . . Fastest Speed 50 | 50 160 160 115 160 126 135 165 120 130 125 160 160 150 150 150 130 130 130 115 115 106 116 116 116 133 133 133 133 116 140 124 120 105 105 150 Average Speed 138 | 154 160 160 145 160 156 156 176 133 145 156 166 160 178 155 196 130 130 130 120 115 110 116 116 119 133 133 133 133 127 140 138 123 110 130 150 Slowest Speed 255 | 160 160 160 160 160 240 180 180 180 150 240 240 160 240 240 250 130 130 130 130 115 255 116 196 133 133 133 133 210 196 140 210 194 175 175 225 Overloaded Moves . | . . . . . . . . . . . . . . . . . . . . . . . . . . . . . . . . . . . . Propulsion Burnouts . | . . . . . . . . . . . . . . . . . . . . . . . . . . . . . . . . . . . . Robots Hopped . | . . . . . . . . . . . . . . . . . . . . . . . . . . . . . . . . . . . . Potential Cave-ins 4 | . . . . . . . . . . . . . . . . . . . . . . . . . . . . . . . 2 . . . 2 Cave-ins Triggered . | . . . . . . . . . . . . . . . . . . . . . . . . . . . . . . . . . . . . Microwarps 68 | . . . . . . . . . . . . . . . . . . . . . . . . . . . . . . . . . 48 . 20 Exploration Rate (%) 65 | 4 91 94 81 97 78 91 94 90 25 95 9 92 83 68 81 24 81 88 86 89 55 76 21 88 60 97 31 28 54 92 35 83 47 34 25 Regions Visited 35 Branch Regions 22 Pre-discovered Areas 10 | . . 2 . . . . 7 . . . . . . 1 . . . . . . . . . . . . . . . . . . . . . Known Exits Taken 12 | . . 1 1 . 1 . . . . . 1 1 . . . 1 . . . 1 . . . . . . 1 1 1 1 1 . . . . Unknown Exits Taken 19 | 1 1 . . 1 . 1 1 1 . . . . 1 1 1 . 1 1 1 . . . 1 1 1 1 . . . . . 1 1 1 . Scrap Searched 26 | . . 1 . 1 . . . 3 . . . 7 2 . 5 . 2 2 . 3 . . . . . . . . . . . . . . . Spaces Dug 187 | . . . 10 . 3 1 . . 19 . 1 . 4 . . 2 1 1 . 2 35 . 1 . . . . 5 7 . 22 9 14 25 25 Terrain Destroyed 1188 | . 2 . 40 . 5 24 10 . 120 . 5 10 37 . 53 89 1 1 . 2 42 . 60 2 17 13 3 94 65 . 128 118 97 56 94 Melee 6 | . . . . . 3 1 . . 2 . . . . . . . . . . . . . . . . . . . . . . . . . . Projectile 435 | . . . . . . . . . 22 . 1 1 7 . . 4 1 1 . 2 42 . 22 2 17 13 3 94 57 . 26 22 16 29 53 AOE 703 | . 2 . 40 . 2 23 10 . 96 . 4 9 30 . 52 80 . . . . . . 38 . . . . . 7 . 89 88 79 22 32 Terrain Rammed . | . . . . . . . . . . . . . . . . . . . . . . . . . . . . . . . . . . . . Walls Destroyed . | . . . . . . . . . . . . . . . . . . . . . . . . . . . . . . . . . . . . Machines Disabled . | . . . . . . . . . . . . . . . . . . . . . . . . . . . . . . . . . . . . Actions | -11 -10 -10 -9 -9 -8 -8 -8 -8 -6 -6 -6 -6 -6 -6 -5 -5 -5 -5 -5 -4 -4 -4 -4 -4 -4 -4 -4 -3 -3 -3 -2 -2 -2 -1 -1 --------- Run | Yrd Mat Min Mat Min Mat Sto Rec Scr Fac Was Fac Low Low Dat Pro Fac Upp Upp War Pro Fac Was Fac Ext Cet Arc Hub Res Arm Lab Res Tes Sec Acc Com Total 32684 | 161 443 489 1197 747 1075 788 695 1762 1248 684 390 960 1104 87 876 1128 1026 664 991 911 2366 93 792 1119 414 272 324 1529 984 878 1485 1245 932 1326 1499 Wait 4531 | 15 15 14 154 42 101 107 32 368 93 2 74 253 103 . 146 76 125 22 194 128 200 . 42 234 77 46 29 86 60 552 150 48 41 272 630 Move 24257 | 104 375 452 872 681 803 554 562 1337 995 627 263 606 896 79 671 888 859 631 732 731 1882 92 652 727 311 206 286 1280 758 283 1050 928 675 849 560 Hop . | . . . . . . . . . . . . . . . . . . . . . . . . . . . . . . . . . . . . Pick Up 297 | 6 16 3 18 . 20 14 2 12 22 12 3 2 3 . 9 22 1 1 14 . 10 . 9 1 . . . 10 9 1 19 15 13 9 21 Fast Attach 218 | 7 2 . 5 . 6 3 . 4 11 8 2 2 . . 7 8 . . 7 . 20 . 4 10 8 1 1 13 16 3 15 20 23 8 4 Attach 128 | . . . 2 . 3 . . 6 9 1 1 . 9 4 3 6 . . 5 . 6 . 3 . . . . 7 1 . 8 11 22 11 10 Detach 98 | . . . 2 . 1 1 3 1 . . . 1 1 4 5 4 . . 4 . 6 . 2 1 . . 1 7 6 1 8 7 19 6 7 Swap 919 | . 7 6 59 11 60 30 6 10 32 6 16 19 27 . 10 54 25 7 5 36 88 1 28 14 5 3 4 60 33 5 94 49 12 47 50 Drop 458 | 1 9 3 34 4 25 21 5 13 22 20 4 6 5 . 7 24 4 1 25 . 20 . 11 13 7 . 1 22 24 3 23 26 35 14 26 Fire 1448 | 28 19 11 51 8 53 33 7 7 61 8 27 24 47 . 17 46 11 2 5 16 128 . 41 31 6 16 1 44 37 30 118 125 89 110 191 Melee 11 | . . . . . 3 1 . 4 3 . . . . . . . . . . . . . . . . . . . . . . . . . . Ram . | . . . . . . . . . . . . . . . . . . . . . . . . . . . . . . . . . . . . Kick 5 | . . . . . . . . . . . . . . . . . . . . . 1 . . . . . 1 . . . . . 3 . . Crush . | . . . . . . . . . . . . . . . . . . . . . . . . . . . . . . . . . . . . Escape Stasis 52 | . . . . . . 24 . . . . . . . . . . . . . . 5 . . 10 . . . . . . . 13 . . . Rewire 260 | . . . . 1 . . 78 . . . . 47 12 . . . 1 . . . . . . 78 . . . . 40 . . 3 . . . Trap 1 | . . . . . . . . . . . . . 1 . . . . . . . . . . . . . . . . . . . . . . Miscellaneous 1 | . . . . . . . . . . . . . . . 1 . . . . . . . . . . . . . . . . . . . . Route ------- -11/Scrapyard -10/Materials (discovered 3 exits: *Mat x2 / *Min) -10/Mines (discovered 2 exits: *Mat x2) -9/Materials (discovered 4 exits: *Mat x2 / *Min x2) -9/Mines (discovered 3 exits: *Mat x2 / [*Zio]) -8/Materials (discovered 4 exits: [*Fac x2] / *Sto x2) -8/Storage (discovered 2 exits: [*Fac] / *Rec) -8/Recycling (discovered 2 exits: *Fac / [*Scr]) -8/Scraptown (discovered 2 exits: *Fac x2) -6/Factory -6/Waste -6/Factory (discovered 2 exits: *Low x2) -6/Lower Caves -6/Lower Caves (discovered 2 exits: *Fac / *Dat) -6/Data Miner -5/Proximity Caves -5/Factory (discovered 2 exits: *Upp x2) -5/Upper Caves -5/Upper Caves (discovered 2 exits: *Fac / *War) -5/Warlord -4/Proximity Caves -4/Factory (discovered 5 exits: *Res x4 / [*Upp]) -4/Waste -4/Factory -4/Extension (discovered 3 exits: *Res x2 / *Cet) -4/Cetus (discovered 2 exits: *Res / [*Arc]) -4/Archives (discovered 3 exits: *Res / *Hub x2) -4/Hub_04(d) -3/Research (discovered 2 exits: Res / *Arm) -3/Armory (discovered 2 exits: Res / *Lab) -3/Lab -2/Research (discovered 3 exits: *Acc / *Tes x2) -2/Testing (discovered 2 exits: *Sec / [*Frg]) -2/Section 7 -1/Access -1/Command (discovered 2 exits: Sur x2) By MAIN.C's Side History --------- Turn | Location | Event 7 | -11/Scrapyard | Discovered new exit (range 15) 250 | -11/Scrapyard | Entered Materials 316 | -10/Materials | Build established: Mutant 373 | -10/Materials | Discovered new exit (range 11) 714 | -10/Materials | Discovered new exit (range 16) 865 | -10/Materials | Discovered new exit (range 13) 956 | -10/Materials | Entered Mines 1028 | -10/Mines | Identified exit to Materials 1132 | -10/Mines | Learned location of Zion (-7) 1153 | -10/Mines | Learned location of Storage (-8) 1432 | -10/Mines | A weapon hastily lodged in a ceiling crevice suddenly fell to the ground 1462 | -10/Mines | Discovered exit to Materials (range 9) 1739 | -10/Mines | Entered Materials 1739 | -9/Materials | Evolved 2 slots: Propulsion x1, Utility x1 1740 | -9/Materials | Identified exit to Mines 2077 | -9/Materials | Central database locked down 2087 | -9/Materials | Discovered new exit (range 16) 2536 | -9/Materials | Build established: Scavenger-Mutant 2675 | -9/Materials | Discovered new exit (range 7) 3429 | -9/Materials | Entered Mines 3430 | -9/Mines | Assembled infested the area 3435 | -9/Mines | Assisted by a Guerilla fighting off Assembled 3538 | -9/Mines | A Derelict revealed a hidden shortcut to a safe place 3637 | -9/Mines | Deemed a non-threat by the Exiles lab entrance 3673 | -9/Mines | Joined a pair of Derelicts in attacking an 0b10 outpost 3705 | -9/Mines | Build established: Mutant 3854 | -9/Mines | Discovered new exit (range 5) 4074 | -9/Mines | Found a hidden stash of uninstalled traps 4094 | -9/Mines | Received a Mining Laser from a helpful Derelict 4302 | -9/Mines | Discovered new exit (range 5) 4602 | -9/Mines | Entered Materials 4602 | -8/Materials | Evolved 2 slots: Utility x1, Weapon x1 4887 | -8/Materials | Build established: Scavenger-Tank 5119 | -8/Materials | Discovered new exit (range 15) 5208 | -8/Materials | Build established: Tank 5567 | -8/Materials | Discovered new exit (range 12) 5804 | -8/Materials | Identified exit to Storage 5845 | -8/Materials | Discovered new exit (range 13) 6265 | -8/Materials | Entered Storage 6341 | -8/Storage | Assisted by bots powering up and referring to "LRC-V3" 6491 | -8/Storage | Lost 4 allies 6543 | -8/Storage | Lost 3 allies 6796 | -8/Storage | Build established: Gunner 7090 | -8/Storage | Lost 3 allies 7211 | -8/Storage | Discovered new exit (range 16) 7432 | -8/Storage | Used back door to open Recycling access 7432 | -8/Storage | Discovered new exit (range 5) 7441 | -8/Storage | Entered Recycling 7442 | -8/Recycling | Met a Zionite searching for Scraptown 7743 | -8/Recycling | Discovered new exit (range 7) 8508 | -8/Recycling | Scanned before Scraplab entrance 8549 | -8/Recycling | Discovered new exit (range 2) 8583 | -8/Recycling | Entered Scraptown 8583 | -8/Scraptown | Accompanied by 7 allies 8583 | -8/Scraptown | System corruption cleaned by C-Scrubber 8908 | -8/Scraptown | Build established: Commander-Gunner 9097 | -8/Scraptown | Discovered new exit (range 7) 9178 | -8/Scraptown | Visited CPS Storage 9205 | -8/Scraptown | Visited Red Mages 9254 | -8/Scraptown | Visited Fellowship of the Rings 9328 | -8/Scraptown | Visited Comm Corps 9487 | -8/Scraptown | Visited Assassins FH 9503 | -8/Scraptown | Visited TADAMA 9532 | -8/Scraptown | Visited Junk Repository 9582 | -8/Scraptown | Visited UFD Registry 9582 | -8/Scraptown | Registered with UFD as "Protothruster" 9611 | -8/Scraptown | Visited Junk Repository 9658 | -8/Scraptown | Visited Science Testing Area 9677 | -8/Scraptown | Visited Curators Association 9812 | -8/Scraptown | Visited Scrapoid Research Area 9832 | -8/Scraptown | Visited Derelict Rescue Squad 9841 | -8/Scraptown | Found DRS Beacon 9877 | -8/Scraptown | Visited A0-MCA Data Center 9896 | -8/Scraptown | Visited Chapter 10 9920 | -8/Scraptown | Visited Infowarlord's Domain 10009 | -8/Scraptown | Given a B+ rating by A0-MCA 10127 | -8/Scraptown | Found Exp. Signal Interpreter 10230 | -8/Scraptown | Met Optimus 10230 | -8/Scraptown | Accepted into 0bPrime 10585 | -8/Scraptown | Build established: Commander-Mutant 10630 | -8/Scraptown | Civil war broke out across Scraptown 10636 | -8/Scraptown | Found Deploy-a-Sentry 10654 | -8/Scraptown | Found Siege Articulator 10663 | -8/Scraptown | Found PL-3XN's Ring of Power 10692 | -8/Scraptown | Lost 4 allies 10783 | -8/Scraptown | Found Prototype Processor 10783 | -8/Scraptown | Identified Expert System 10806 | -8/Scraptown | Discovered new exit (range 3) 10815 | -8/Scraptown | Entered Factory 10815 | -6/Factory | Accompanied by 1 ally 10815 | -6/Factory | Evolved 4 slots: Power x1, Propulsion x1, Utility x1, Weapon x1 10845 | -6/Factory | Lost 12 allies 11040 | -6/Factory | Build established: Tank 11185 | -6/Factory | Garrison activated, responded to threat 11230 | -6/Factory | Destroyed 8 combat bots 11356 | -6/Factory | Fabricated Adv. Medium Treads? 11540 | -6/Factory | Spotted B-75 Beast 11706 | -6/Factory | Lost 3 parts (2u1w) 12315 | -6/Factory | Discovered new exit (range 4) 12636 | -6/Factory | Sucked down chute 12636 | -6/Factory | Entered Waste 12636 | -6/Waste | The area was eerily silent 12642 | -6/Waste | Found Prototype Hackware 13093 | -6/Waste | Found Broken Gamma Bomb Array 13097 | -6/Waste | Discovered new exit (range 16) 13300 | -6/Waste | Build established: Scavenger-Tank 13679 | -6/Waste | Entered Factory 14003 | -6/Factory | Identified exit to Lower Caves 14089 | -6/Factory | Identified Exp. Hacking Suite 14121 | -6/Factory | Repaired Hvy. Treads 14311 | -6/Factory | Entered Lower Caves 14373 | -6/Lower Caves | Encountered a Warlord checkpoint 14390 | -6/Lower Caves | Identified exit to Lower Caves 14451 | -6/Lower Caves | Build established: Tank 14540 | -6/Lower Caves | Learned location of 1 exit from Research 14540 | -6/Lower Caves | Learned Extension trap positions 14540 | -6/Lower Caves | Learned Extension emergency access door positions 14540 | -6/Lower Caves | Learned Factory garrison access intel 14564 | -6/Lower Caves | P-60 Hacker assimilated allied J8-R2P(g) 14902 | -6/Lower Caves | Attacked by a faux Warlord 15185 | -6/Lower Caves | Build established: Scavenger-Tank 15606 | -6/Lower Caves | Learned Factory terminal intel 15691 | -6/Lower Caves | Entered another Lower Caves area 15780 | -6/Lower Caves | Discovered new exit (range 15) 15816 | -6/Lower Caves | Learned Factory stockpile data 16008 | -6/Lower Caves | Spotted B-75 Beast 16316 | -6/Lower Caves | Build established: Derelict-Tank 16661 | -6/Lower Caves | Attracted the attention of an 0b10 outpost 16851 | -6/Lower Caves | Build established: Scavenger-Tank 17143 | -6/Lower Caves | Discovered new exit (range 15) 17288 | -6/Lower Caves | Lost 3 parts (1u2w) 17401 | -6/Lower Caves | Learned Factory terminal intel 17549 | -6/Lower Caves | Build established: Tank 17598 | -6/Lower Caves | Entered Data Miner 17598 | -6/Data Miner | Accompanied by 1 ally 17598 | -6/Data Miner | Discovered new exit (range 6) 17633 | -6/Data Miner | Met Data Miner 17659 | -6/Data Miner | Learned location of Section 7 (-2) 17659 | -6/Data Miner | Acquired the access code to Warlord's prototype stash 17684 | -6/Data Miner | Received God Mode back door access code from Data Miner 17727 | -6/Data Miner | Entered Proximity Caves 17727 | -5/Proximity Caves | Accompanied by 1 ally 17803 | -5/Proximity Caves | Activated DRS Beacon 17842 | -5/Proximity Caves | Spotter reported a threat 18097 | -5/Proximity Caves | Spotter reported a threat 18355 | -5/Proximity Caves | Lost 3 parts (1n2w) 18428 | -5/Proximity Caves | Build established: Scavenger-Tank 19007 | -5/Proximity Caves | Discovered new exit (range 8) 19288 | -5/Proximity Caves | Entered Factory 19288 | -5/Factory | Evolved 2 slots: Propulsion x1, Utility x1 19290 | -5/Factory | Loaded intel: 26 terminal locations 19291 | -5/Factory | Loaded intel: 4 garrison access locations 19444 | -5/Factory | Tech Extrapolator generated special schematic: Deep Structural Scanner 19659 | -5/Factory | Build established: Scavenger-Skirmisher 19955 | -5/Factory | Incoming investigation squad redirected 20069 | -5/Factory | Fabricated Deep Structural Scanner (x1) 20416 | -5/Factory | Identified exit to Upper Caves 20464 | -5/Factory | Build established: Pyromaniac-Skirmisher 20641 | -5/Factory | Garrison activated, responded to threat 20805 | -5/Factory | Entered Upper Caves 21117 | -5/Upper Caves | Learned Factory non-interactive machine intel 21189 | -5/Upper Caves | Learned Factory garrison access intel 21390 | -5/Upper Caves | Ambushed by wild Derelicts 21830 | -5/Upper Caves | Discovered new exit (range 14) 22123 | -5/Upper Caves | Entered another Upper Caves area 22183 | -5/Upper Caves | Discovered new exit (range 9) 22695 | -5/Upper Caves | Spotted B-75 Beast 22863 | -5/Upper Caves | Discovered new exit (range 14) 22982 | -5/Upper Caves | Entered Warlord 23027 | -5/Warlord | System corruption cleaned by Quarantine Array 23309 | -5/Warlord | Learned Quarantine stockpile data 23310 | -5/Warlord | Learned 4 Armory zone layouts 23310 | -5/Warlord | Learned 4 Armory zone layouts 23310 | -5/Warlord | Learned 4 Armory zone layouts 23310 | -5/Warlord | Learned 4 Research zone layouts 23312 | -5/Warlord | Learned Research fabricator intel 23326 | -5/Warlord | Opened Warlord's prototype stash 23334 | -5/Warlord | Found Prototype Device 23336 | -5/Warlord | Found Prototype Processor 23341 | -5/Warlord | Identified Exp. Focal Shield 23364 | -5/Warlord | Found Prototype Reactor 23364 | -5/Warlord | Identified Vortex Chain Reactor 23385 | -5/Warlord | Identified Exp. Armor Integrity Analyzer 23598 | -5/Warlord | Found Prototype Energy Gun 23602 | -5/Warlord | Warlord's base attacked by MAIN.C 23617 | -5/Warlord | Build established: Skirmisher 23699 | -5/Warlord | Found Prototype Energy Gun 23699 | -5/Warlord | Identified Vortex Rail 23706 | -5/Warlord | Found Prototype Energy Cannon 23706 | -5/Warlord | Identified Vortex Driver 23711 | -5/Warlord | Found Vortex Driver 23721 | -5/Warlord | Found Vortex Rail 23932 | -5/Warlord | Lost 3 allies 23952 | -5/Warlord | Warlord forces counterattacked 23981 | -5/Warlord | Spotted Striker 24003 | -5/Warlord | Build established: Infiltrator-Skirmisher 24014 | -5/Warlord | Spotted Striker 24027 | -5/Warlord | Spotted Executioner 24052 | -5/Warlord | Lost 9 allies 24092 | -5/Warlord | Spotted Executioner 24107 | -5/Warlord | Discovered new exit (range 15) 24120 | -5/Warlord | Entered Proximity Caves 24148 | -4/Proximity Caves | Lost 6 allies 24277 | -4/Proximity Caves | Spotter reported a threat 24784 | -4/Proximity Caves | Identified exit to Factory 25205 | -4/Proximity Caves | Entered Factory 25205 | -4/Factory | Evolved 2 slots: Propulsion x1, Utility x1 25206 | -4/Factory | Loaded intel: 276 non-interactive machine locations 25207 | -4/Factory | Loaded intel: 28 terminal locations 25208 | -4/Factory | Loaded intel: 4 garrison access locations 25637 | -4/Factory | Build established: Tank 25670 | -4/Factory | Destroyed 8 combat bots 25798 | -4/Factory | Spotted B-86 Titan 25965 | -4/Factory | Discovered new exit (range 10) 25966 | -4/Factory | Spotted B-86 Titan 26510 | -4/Factory | Found Imp. Powered Armor 26565 | -4/Factory | Discovered new exit (range 16) 26717 | -4/Factory | Watched by a mysterious "MATRIX" hacker. 27228 | -4/Factory | Repaired Hvy. Armored Exoskeleton 27590 | -4/Factory | Discovered new exit (range 14) 27633 | -4/Factory | Identified exit to Research 27767 | -4/Factory | Found Prototype Launcher 27772 | -4/Factory | Identified Mni. Smartbomb Launcher 28048 | -4/Factory | Manually triggered Chute Trap 28048 | -4/Factory | Sucked down chute 28048 | -4/Factory | Entered Waste 28061 | -4/Waste | Spotted C-40 Crusher 28063 | -4/Waste | EMP discharged 28066 | -4/Waste | Spotted C-40 Crusher 28095 | -4/Waste | Spotted C-40 Crusher 28111 | -4/Waste | Spotted C-40 Crusher 28115 | -4/Waste | Spotted C-40 Crusher 28123 | -4/Waste | Crushed by Compactor (1 part destroyed, 1 dropped) 28126 | -4/Waste | Crushed by Compactor (0 parts destroyed, 1 dropped) 28139 | -4/Waste | Spotted C-40 Crusher 28146 | -4/Waste | Discovered new exit (range 10) 28157 | -4/Waste | Entered Factory 28606 | -4/Factory | System corruption reached 10% 28881 | -4/Factory | Found Prototype Launcher 28881 | -4/Factory | Identified Scatter Rocket Array 29106 | -4/Factory | Discovered new exit (range 16) 29131 | -4/Factory | Entered Extension 29132 | -4/Extension | Loaded intel: 13 trap records 29366 | -4/Extension | Rescued a captive Derelict 29366 | -4/Extension | Rescued a captive Derelict 29422 | -4/Extension | Rescued A7 29496 | -4/Extension | Rescued a captive Derelict 29531 | -4/Extension | Rescued a captive Derelict 29531 | -4/Extension | Rescued a captive Derelict 29544 | -4/Extension | Rescued a captive Derelict 29684 | -4/Extension | Rescued a captive Derelict 29685 | -4/Extension | Rescued a captive Derelict 29840 | -4/Extension | Spotted B-86 Titan 29863 | -4/Extension | Spotted B-86 Titan 29866 | -4/Extension | Allies destroyed B-86 Titan 29879 | -4/Extension | Allies destroyed B-86 Titan 29905 | -4/Extension | Discovered exit to Research (range 3) 29933 | -4/Extension | Build established: Commander-Tank 29974 | -4/Extension | Rescued a captive Derelict 30026 | -4/Extension | Rescued a captive Derelict 30055 | -4/Extension | Rescued a captive Derelict 30056 | -4/Extension | Rescued a captive Derelict 30346 | -4/Extension | Discovered exit to Research (range 10) 30348 | -4/Extension | Discovered new exit (range 6) 30447 | -4/Extension | Entered Cetus 30447 | -4/Cetus | Accompanied by 19 allies (A7) 30452 | -4/Cetus | Acquired a Cetus Manufacturing Module code from A7 30463 | -4/Cetus | Spotted Cetus Guard 30463 | -4/Cetus | Spotted Cetus Guard 30470 | -4/Cetus | Spotted Cetus Guard 30484 | -4/Cetus | Allies destroyed Cetus Guard 30486 | -4/Cetus | Allies destroyed Cetus Guard 30487 | -4/Cetus | Allies destroyed Cetus Guard 30513 | -4/Cetus | Lost 3 allies 30549 | -4/Cetus | Started Cetus Manufacturing Module 30565 | -4/Cetus | Discovered new exit (range 16) 30574 | -4/Cetus | Manufactured an Enhanced Grunt 30599 | -4/Cetus | Manufactured an Enhanced Grunt 30603 | -4/Cetus | Spotted Cetus Guard 30605 | -4/Cetus | Spotted Cetus Guard 30609 | -4/Cetus | Allies destroyed Cetus Guard 30616 | -4/Cetus | Allies destroyed Cetus Guard 30624 | -4/Cetus | Manufactured an Enhanced Grunt 30627 | -4/Cetus | Discovered exit to Research (range 16) 30634 | -4/Cetus | Met Revision 17 30636 | -4/Cetus | Lost 4 allies 30649 | -4/Cetus | Manufactured an Enhanced Grunt 30657 | -4/Cetus | System corruption reached 30% 30674 | -4/Cetus | Manufactured an Enhanced Grunt 30901 | -4/Cetus | Murdered A7 30906 | -4/Cetus | Extracted ID and sensor layout for unrecognized location from A7's data core 30981 | -4/Cetus | Entered Archives 30981 | -4/Archives | Accompanied by 15 allies 31060 | -4/Archives | Discovered new exit (range 15) 31062 | -4/Archives | Lost 4 allies 31116 | -4/Archives | Discovered exit to Research (range 13) 31316 | -4/Archives | Build established: Scavenger-Tank 31327 | -4/Archives | Discovered new exit (range 16) 31362 | -4/Archives | Entered Hub_04(d) 31362 | -4/Hub_04(d) | Accompanied by 11 allies 31709 | -4/Hub_04(d) | Lost 3 allies 31755 | -4/Hub_04(d) | Discovered exit to Research (range 11) 31785 | -4/Hub_04(d) | Entered Research 31785 | -3/Research | Evolved 2 slots: Utility x2 31786 | -3/Research | Identified exit to Armory 31787 | -3/Research | Identified exit to Research 31789 | -3/Research | Loaded intel: 4 fabricator locations 31985 | -3/Research | Revision forces began assault on 0b10 32064 | -3/Research | Met up with Revision 17++ 32485 | -3/Research | Research terminal network offline 32662 | -3/Research | Found Unknown Protection 32662 | -3/Research | Identified Adv. Powered Armor 32990 | -3/Research | Found Prototype Launcher 32990 | -3/Research | Identified Adv. Micro-nuke Launcher 33146 | -3/Research | Spotted B-86 Titan 33294 | -3/Research | Build established: Scavenger-Gunner 33401 | -3/Research | Found Prototype Device 33401 | -3/Research | Identified Exp. Shield Generator 33407 | -3/Research | Found Unknown Launcher 33407 | -3/Research | Identified Fusion Bomb Launcher 33855 | -3/Research | Entered Armory 33856 | -3/Armory | Met VL-GR5, who suggested a friendly competition 33856 | -3/Armory | Identified exit to Lab 33908 | -3/Armory | Found Prototype Launcher 33908 | -3/Armory | Identified Hellfire Missile Launcher 33917 | -3/Armory | Found Prototype Processor 33917 | -3/Armory | Identified Exp. Targeting Computer 33957 | -3/Armory | Spotted B-86 Titan 34160 | -3/Armory | Destroyed 7 combat bots 34165 | -3/Armory | Lost the competition with VL-GR5 34332 | -3/Armory | VL-GR5 left a parting gift on exiting Armory 34467 | -3/Armory | Found Gamma Bomb Array+ 34483 | -3/Armory | Found Prototype Processor 34483 | -3/Armory | Identified Exp. Melee Analysis Suite 34711 | -3/Armory | Build established: Gunner 35113 | -3/Armory | Entered Lab 35113 | -3/Lab | Accompanied by 4 allies 35113 | -3/Lab | Discovered exit to Research (range 9) 35129 | -3/Lab | Hidden lab's door opened automatically 35129 | -3/Lab | Sensor layout match revealed 35130 | -3/Lab | Gained access to the hidden lab's interior 35245 | -3/Lab | Unable to decrypt terminal 35324 | -3/Lab | Build established: Commander-Gunner 35366 | -3/Lab | Found Alien Artifact 35366 | -3/Lab | Identified Integrated Mediator 35366 | -3/Lab | Installed Integrated Mediator, increased core attachment efficiency 35375 | -3/Lab | Found Alien Artifact 35375 | -3/Lab | Identified Core Expander 35375 | -3/Lab | Installed Core Expander, added new Power slot 36016 | -3/Lab | Found Prototype Energy Cannon 36016 | -3/Lab | Identified Warp Cannon 36036 | -3/Lab | Found Prototype Protection 36036 | -3/Lab | Identified Hvy. Regenerative Plating 36040 | -3/Lab | Found Prototype Hackware 36040 | -3/Lab | Identified Deep Network Scanner 36137 | -3/Lab | Entered Research 36137 | -2/Research | Accompanied by 4 allies 36137 | -2/Research | Evolved 2 slots: Utility x1, Weapon x1 36211 | -2/Research | Lost 3 allies 36322 | -2/Research | Build established: Hacker-Gunner 36365 | -2/Research | Identified exit to Testing 36401 | -2/Research | Unchained authorized (DW-4LL) 36446 | -2/Research | Found Prototype Device 36446 | -2/Research | Identified Adv. Particle Accelerator 36580 | -2/Research | Spotted B-90 Cyclops 36615 | -2/Research | Destroyed B-90 Cyclops 36863 | -2/Research | DW-4LL burst out of a wall 36889 | -2/Research | Scrapoids reinforcements arrived? 36890 | -2/Research | Incoming investigation squad redirected 36894 | -2/Research | Allies destroyed DW-4LL 36901 | -2/Research | Found Exp. Armor Integrity Analyzer 36904 | -2/Research | Found Prototype Device 36904 | -2/Research | Identified Exp. Weapon Cycler 36907 | -2/Research | Found Prototype Ballistic Gun 36915 | -2/Research | Allied Derelicts emerged from ambush trap array 36949 | -2/Research | Found Prototype Processor 36949 | -2/Research | Identified Zeronet Interface 36963 | -2/Research | Lost 5 allies 37225 | -2/Research | Build established: Infiltrator-Skirmisher 37250 | -2/Research | Discovered new exit (range 15) 37263 | -2/Research | Identified DW-4LL's Megashotty 37637 | -2/Research | First assault squad dispatched 37657 | -2/Research | Incoming assault squad redirected 37660 | -2/Research | Incoming assault squad redirected 37666 | -2/Research | Found Gamma Bomb Array+ 37685 | -2/Research | Build established: Gunner 37748 | -2/Research | Found Prototype Launcher 37748 | -2/Research | Identified Gui. Micro-nuke Launcher 37862 | -2/Research | DAS Turret deployed 37919 | -2/Research | Found Launcher Loader 37993 | -2/Research | Found Prototype Processor 37993 | -2/Research | Identified Exp. Core Analyzer 38268 | -2/Research | Entered Testing 38329 | -2/Testing | Found Prototype Energy Cannon 38329 | -2/Testing | Identified Cld. Nova Cannon 38409 | -2/Testing | Identified Plasma Storm 38446 | -2/Testing | Unchained authorized (6S-H0T) 38606 | -2/Testing | Found Prototype Energy Gun 38606 | -2/Testing | Identified Hyp. EM Gauss Rifle 38724 | -2/Testing | Scanned by Researcher 38744 | -2/Testing | Found Prototype Energy Cannon 38744 | -2/Testing | Identified Null Cannon 38768 | -2/Testing | First assault squad dispatched 38770 | -2/Testing | Found Prototype Ballistic Gun 38770 | -2/Testing | Identified Hyp. Multirail 39025 | -2/Testing | Found Prototype Device 39025 | -2/Testing | Identified 2N-1CE's Frost Array 39227 | -2/Testing | Found Portable AFG 39333 | -2/Testing | Found Prototype Device 39333 | -2/Testing | Identified Thermal Barrier 39421 | -2/Testing | Found Prototype Device 39421 | -2/Testing | Identified Exp. Hardlight Generator 39477 | -2/Testing | Destroyed 6S-H0T 39482 | -2/Testing | Found 6S-H0T's SS Cartridge 39577 | -2/Testing | Rewired PD-K8WNCNQFK7 39589 | -2/Testing | Protovariant out of control (PD-K8WNCNQFK7) 39589 | -2/Testing | Spotted PD-K8WNCNQFK7 39592 | -2/Testing | Destroyed 8 combat bots 39599 | -2/Testing | Found Prototype Energy Gun 39599 | -2/Testing | Identified Tachyon Dispersion Ray 39605 | -2/Testing | Spotted Investigator 39607 | -2/Testing | High security lockdown imminent 39687 | -2/Testing | High security lockdown engaged 39727 | -2/Testing | Spotted Fortress 39810 | -2/Testing | Discovered new exit (range 6) 39810 | -2/Testing | Discovered new exit (range 6) 39816 | -2/Testing | Entered Section 7 39816 | -2/Section 7 | Spotted S7 Guard 39844 | -2/Section 7 | Build established: Tank 39864 | -2/Section 7 | Destroyed S7 Guard 39881 | -2/Section 7 | Found Alien Artifact 39904 | -2/Section 7 | Found Prototype Reactor 39904 | -2/Section 7 | Identified Zero-point Reactor 39908 | -2/Section 7 | Found Zero-point Reactor 40018 | -2/Section 7 | Found Alien Artifact 40018 | -2/Section 7 | Identified Microwarp Drive 40030 | -2/Section 7 | Discovered new exit (range 11) 40054 | -2/Section 7 | Identified Core Regenerator 40316 | -2/Section 7 | First assault squad dispatched 40327 | -2/Section 7 | Spotted S7 Guard 40400 | -2/Section 7 | Destroyed S7 Guard 40443 | -2/Section 7 | Found Alien Artifact 40479 | -2/Section 7 | Spotted S7 Guard 40584 | -2/Section 7 | Found Prototype Reactor 40584 | -2/Section 7 | Identified Singularity Reactor 40588 | -2/Section 7 | Found Prototype Launcher 40588 | -2/Section 7 | Identified Enh. Gamma Bomb Array 40706 | -2/Section 7 | High security lockdown imminent 40712 | -2/Section 7 | Found Alien Artifact 40727 | -2/Section 7 | Destroyed 7 combat bots 40767 | -2/Section 7 | Spotted B-90 Cyclops 40769 | -2/Section 7 | Core integrity fell below 50% 40775 | -2/Section 7 | Found Alien Artifact 40786 | -2/Section 7 | High security lockdown engaged 40826 | -2/Section 7 | Found Alien Artifact 40858 | -2/Section 7 | Spotted Alpha 7 40859 | -2/Section 7 | Spotted Alpha 7 40927 | -2/Section 7 | Entered Access 40927 | -1/Access | Evolved 2 slots: Utility x2 41049 | -1/Access | Identified Integrity Redistributor 41053 | -1/Access | Used Integrity Redistributor, redistributed integrity from core (-250) 41177 | -1/Access | First assault squad dispatched 41224 | -1/Access | Build established: Infiltrator-Tank 41255 | -1/Access | Used Core Regenerator, restored core integrity (+250) 41967 | -1/Access | Destroyed 12 combat bots 42239 | -1/Access | Warp Cannon suddenly broke down 42430 | -1/Access | Discovered new exit (range 7) 42588 | -1/Access | Entered Command 42972 | -1/Command | Build established: Tank 43088 | -1/Command | First assault squad dispatched 43094 | -1/Command | System corruption reached 10% 43142 | -1/Command | Destroyed 7 combat bots 43150 | -1/Command | High security lockdown imminent 43151 | -1/Command | Spotted B-99 Colossus 43174 | -1/Command | Destroyed B-99 Colossus 43195 | -1/Command | Destroyed 10 combat bots 43230 | -1/Command | High security lockdown engaged 43381 | -1/Command | Destroyed 23 combat bots 43418 | -1/Command | Spotted Combat Programmer 43498 | -1/Command | Met MAIN.C 43520 | -1/Command | 0b10 Conduit disabled 43520 | -1/Command | Destroyed MAIN.C Shell 43522 | -1/Command | Surrendered to MAIN.C 43522 | -1/Command | Loaded intel: 60 machine locations 43522 | -1/Command | Loaded intel: 107 trap records 43522 | -1/Command | Identified exit to Surface 43522 | -1/Command | Discovered exit to Surface (range 65) 43522 | -1/Command | Discovered exit to Surface (range 51) 43563 | -1/Command | Found Thermal Barrier 43568 | -1/Command | Found Prototype Device 43568 | -1/Command | Identified Exp. System Purifier 43592 | -1/Command | Found Prototype Reactor 43595 | -1/Command | Found Zero-point Reactor 43810 | -1/Command | MAIN.C activated Command garrisons 43852 | -1/Command | Unknown forces attacked Command 43852 | -1/Command | Spotted EQ-003 43852 | -1/Command | Spotted EQ-001 43852 | -1/Command | Spotted EQ-000 43852 | -1/Command | Spotted EQ-005 43852 | -1/Command | Spotted EQ-002 43852 | -1/Command | Destroyed EQ-005 43853 | -1/Command | Spotted EQ-004 43859 | -1/Command | Destroyed EQ-000 43864 | -1/Command | Destroyed EQ-001 43895 | -1/Command | Lost 14 allies 43940 | -1/Command | Spotted EQ-019 43940 | -1/Command | Spotted EQ-023 43940 | -1/Command | Spotted EQ-026 43940 | -1/Command | Spotted EQ-018 43940 | -1/Command | Spotted EQ-021 43940 | -1/Command | Spotted EQ-022 43940 | -1/Command | Spotted EQ-020 43948 | -1/Command | Destroyed EQ-026 43962 | -1/Command | Destroyed EQ-018 43964 | -1/Command | Destroyed EQ-022 43994 | -1/Command | Lost 10 allies 44057 | -1/Command | Spotted EQ-039 44057 | -1/Command | Spotted EQ-040 44057 | -1/Command | Spotted EQ-038 44060 | -1/Command | Destroyed EQ-039 44166 | -1/Command | Spotted EQ-060 44166 | -1/Command | Spotted EQ-062 44166 | -1/Command | Spotted EQ-061 44168 | -1/Command | Destroyed EQ-062 44171 | -1/Command | Destroyed EQ-061 44207 | -1/Command | Found Exp. Core Analyzer 44275 | -1/Command | Destroyed EQ-084 44361 | -1/Command | Spotted EQ-097 44367 | -1/Command | Spotted EQ-101 44368 | -1/Command | Spotted EQ-100 44370 | -1/Command | All MAIN.C guards destroyed 44373 | -1/Command | Destroyed EQ-101 44387 | -1/Command | Destroyed EQ-110 44387 | -1/Command | Spotted EQ-125 44391 | -1/Command | Destroyed EQ-125 44397 | -1/Command | Lost 3 allies 44424 | -1/Command | Spotted EQ-085 44424 | -1/Command | Destroyed EQ-085 44427 | -1/Command | Spotted EQ-103 44429 | -1/Command | Destroyed EQ-103 44455 | -1/Command | Spotted EQ-123 44467 | -1/Command | Destroyed EQ-123 44473 | -1/Command | Spotted EQ-112 44475 | -1/Command | Spotted EQ-114 44485 | -1/Command | Destroyed EQ-114 44485 | -1/Command | Spotted EQ-121 44490 | -1/Command | Destroyed EQ-138 44493 | -1/Command | Destroyed EQ-121 44494 | -1/Command | Spotted EQ-141 44495 | -1/Command | Destroyed EQ-141 44498 | -1/Command | Destroyed EQ-112 44499 | -1/Command | Spotted EQ-151 44500 | -1/Command | Spotted EQ-131 44502 | -1/Command | Spotted EQ-144 44513 | -1/Command | Spotted EQ-152 44516 | -1/Command | Destroyed EQ-131 44517 | -1/Command | Attackers retreated from Command 44518 | *** | Fortifying 0b10! Last Messages --------------- 44512_ EQ-131 knocked back. 44512_ EQ-144 Prototype Leg blasted off. 44512_ HV Slug penetrates EQ-151. 44512_ EQ-151 suffers critical hit (Destroy). 44512_ Destroyed Exp. Heat Sink. 44512_ HV Slug penetrates EQ-151. 44512_ EQ-151 knocked back. 44514_ MAIN.C knocked back. 44516_ EQ-131 destroyed. 44517_ ALERT: Enemy forces retreating. MAIN.C: I admit your assistance was pivotal here. It looks like I was right to trust you. This attack appears to have been designed to merely test our defenses, although it was nearly effective enough to force me to take the conflict to the next level. Investigating the origins of these bots should be one of our highest priorities... [Achievement: Stronghold] [Achievement: Superachiever] Map ----- +----------------------------------------------------+ | # #####???????????????????????????????? | | + #???????????????????????????????????? | | # #???????????????????????????????????? | | # #???????????????????????????????????? | | ## #???????????????????????????????????? | | ## #???????????????????????????????????? | | ##### #???????????????????????????????????? | | ## #???????????????????????????????????? | | ## #??????###########################??? | | ## #??????#???????????????# # #?# ##??? | | ## #??????#?################ ##""##??? | | ## #??????#?#""""""" "" ! ###### | | ## #??????#?#"" " *%! #?#??? | | ## ### #??????#?#""""" " %! ! !###### | | +### ## ######?#?# """ """"" %%] [%= % | | ! ## #=[ #?#?# " % % | | ## #= #?#?#" "" % | | #### ## # #?#?#" """" M% %! ###### | | ???####### # #?#?# " " % #?#??? | | ?????????# # #?#?# % % ###### | | ?????????# + #?#?# %= "#?#??? | | ########## # #?#?# %!= % """"""#?#??? | | "" ## # #?#?# =!% !% " """"#?#??? | | """" ## # #?# # =!=%[ * " "#?#??? | | """" ## * *!!= %#[[* %% [[%=%=%[ [=" #?#??? | | "" # =[!!% [!!= %%%%@=% [ = % %! #?#??? | | # !!%! *[% %=%%=%%*% % = % " "%#?#??? | | + %!%=%=%%=]%%[=% ! = *% % % "" #?#??? | | # !*=% ! !==!%*%/[ %]*[=%[ #?#??? | | = # %!= [ = ###%%! *=% !=%!!! #?#??? | | ####!= ! #?###*%=% ! [ [%!%""" ""#?#??? | | #??? # !!#?#?# % % %! =%%% " #?#??? | | #??? !!#?#?#####;###%%##%#########?#??? | | #????# #?#?????## ?## #? #?????????#??? | | #########????# #?################"##########??? | | ############## #?????????????????##???????????? | | + #??????????????????????????????? | | ######## # #??????????????????????????????? | | #####??????# # #??????????????????????????????? | | ######?????# + #??????????????????????????????? | | ## #??####+##+###??????????????????????????????? | | ## < #??# #??????????????????????????????? | | #??# #??????????????????????????????? | | #??# "" #??????????????????????????????? | | ######??# """" #??????????????????????????????? | | ????????# """" #??????????????????????????????? | | ????????# "" #??????????????????????????????? | | ????????# #??????????????????????????????? | | ????????# #??????????????????????????????? | | ????????###########??????????????????????????????? | +----------------------------------------------------+ Best States ------------- Heat Dissipation 190 Coolant Potential 120 Energy Generation 81 Energy Capacity 1100 Matter Stores 300 Matter Capacity 300 Sight Range 23 Robot Scan Range 16 Terrain Scan Range 14 Terrain Scan Density 10 Jamming Range 16 Armor Coverage 1200 Resistance: KI 30 Resistance: TH 50 Resistance: EM 25 Propulsion Shielding 66 Weapon Cycling 30 Phase Shifting 10 Evasion (%) 80 Targeting Accuracy 12 Target Analysis 8 Core Analysis 12 Armor Integrity Analysis 50 Recoil Reduction 6 Matter Filtering 50 Particle Charging 50 Kinecelleration 40 Offensive Hacking 25 Authchip Count 2 Item Schematics ----------------- Combat Drone Bay | -6/Data Miner | Free Lgt. Regenerative Plating | -6/Data Miner | Free Cld. Gravmag System | -6/Data Miner | Free Imp. Matter Compressor | -6/Data Miner | Free Enh. Coil Gun | -6/Data Miner | Free Field Propulsion Array | -6/Data Miner | Free Adv. Particle Charger | -6/Data Miner | Free Adv. Datajack | -6/Data Miner | Free Imp. Transmission Jammer | -6/Data Miner | Free Com. HERF Cannon | -6/Data Miner | Free Deep Structural Scanner | -5/Factory | Extrapolated Mak. Hacking Suite | -5/Factory | Extrapolated Mak. Kinetic Plating | -5/Factory | Extrapolated Mak. Coolant Network | -5/Factory | Extrapolated Mak. Transmission Jammer | -5/Factory | Extrapolated Robot Schematics ------------------ G-50 Soldier | -6/Data Miner | Free B-48 Gladiator | -6/Data Miner | Free A-15 Conveyor | -6/Data Miner | Free R-10 Processor | -6/Data Miner | Free R-06 Scavenger | -2/Testing | Archive H-88 Terminator | -2/Testing | Archive Fabricated ------------ Adv. Medium Treads | x2 | -6/Factory | Preloaded Deep Structural Scanner | x1 | -5/Factory | Authchip Repaired ---------- Hvy. Treads | 19% | -6/Factory Hvy. Armored Exoskeleton | 41% | -4/Factory Studied --------- Com. Wheel | -9/Materials | Hacked Hyp. Coil Gun | -5/Factory | Hacked Hyp. Gauss Rifle | -5/Factory | Hacked Gamma Bomb Array | -3/Research | Hacked Centrium Leg | -2/Section 7 | Hacked Alien Tech Used ----------------- Integrated Mediator Core Expander Microwarp Drive Integrity Redistributor Core Regenerator Achievements -------------- About That Survey... Deadly Precision Prodigal Son Stronghold Superachiever Challenges ------------ None Game ------ Seed TerrainExplosiveDrillbomb Manual? 0 Play Time 14:14:21 Cumulative 522.9 hours Start 2026.04.23 @ 08:57:22 End 2026.04.29 @ 23:03:00 Sessions 41 Manual Loads 0 Difficulty Rogue Special Mode None Game No. 91 Rogue 91 Adventurer 0 Explorer 0 Win Type 8 Total 20 Types 7/1/5/1/1/0/1/2/1/1 Lore% 85 Gallery% 79 Achievement% 75 Wizard Run 0 Options --------- Layout 1 ASCII 0 Keyboard 1 Movement Vi Keybinds 1 Fullscreen 1 Font 36/Tamsyn Map View 50x40 Zoom Use 0% Tactical HUD 1 Map Filters NONE Filters NONE Steam 1 RUN: 4a68a948-df6e-4e10-9fc0-8c8752bbb441